Department Family,Entity,Transaction Date,Expense Type,Expense Area,Supplier Name,Transaction Number, Amount (Sterling) 
DFID,DFID,11/02/2011,Aid to civil society organisations / NGOs,Policy and Research Directorate,Royal Institute for Int. Affairs,400136444,"40,398.19"
DFID,DFID,15/02/2011,Technical & Advisory services,West and Southern Africa,CAMBRIDGE EDUCATION CONSUL,400137030,"43,881.65"
DFID,DFID,16/02/2011,Aid to civil society organisations / NGOs,Policy and Research Directorate,State Information Center,400138424,"60,583.92"
DFID,DFID,16/02/2011,Aid to civil society organisations / NGOs,Asia Division,State Information Center,400138424,"29,839.84"
DFID,DFID,01/02/2011,Emergency / Humanitarian Assistance,"Security & Humanitarian, Middle East, Caribbean & Overseas Territories Division",Pan American Health Organisation,400138666,"2,000,000.00"
DFID,DFID,09/02/2011,Aid to civil society organisations / NGOs,West and Southern Africa,Institute of Governance and Social Research,400139205,"52,494.06"
DFID,DFID,02/02/2011,Emergency / Humanitarian Assistance,Western Asia and Stabilisation Division,THE CROWN AGENTS,400139232,"366,085.58"
DFID,DFID,03/02/2011,Technical & Advisory services,"Security & Humanitarian, Middle East, Caribbean & Overseas Territories Division",BRITISH COUNCIL,400139642,"-83,694.62"
DFID,DFID,03/02/2011,Technical & Advisory services,"Security & Humanitarian, Middle East, Caribbean & Overseas Territories Division",BRITISH COUNCIL,400139642,"140,166.62"
DFID,DFID,01/02/2011,Aid to international organisations,Policy and Research Directorate,AERAS Global TB Vaccine Foundation,400139672,"2,500,000.00"
DFID,DFID,01/02/2011,Technical & Advisory services,Asia Division,OPTIONS CONSULTANCY SERVICES LIMITED,400139724,"52,149.00"
DFID,DFID,02/02/2011,"Property Repairs, Maintenance & Alterations",East and Central Africa,CHARLES KENDALL & PARTNERS LTD(FEE,400139958,"36,019.78"
DFID,DFID,01/02/2011,Aid to international organisations,West and Southern Africa,THE ASSOCIATION OF AFRICAN UNIVERSITIES,400140000,"936,537.22"
DFID,DFID,01/02/2011,Aid to civil society organisations / NGOs,East and Central Africa,East African Community Secretariat,400140038,"850,000.00"
DFID,DFID,01/02/2011,Aid to other bilateral donors,Asia Division,EUROPEAN COMMISSION,400140143,"2,700,000.00"
DFID,DFID,10/02/2011,Technical & Advisory services,West and Southern Africa,THE CROWN AGENTS,400140303,"58,185.81"
DFID,DFID,03/02/2011,Aid to civil society organisations / NGOs,West and Southern Africa,EFInA,400140320,"335,052.04"
DFID,DFID,02/02/2011,Aid to civil society organisations / NGOs,Policy and Research Directorate,THE CO-OPERATIVE COLLEGE,400140445,"50,070.52"
DFID,DFID,01/02/2011,Technical & Advisory services,East and Central Africa,BMB  MOTT  MACDONALD,400140451,"339,534.05"
DFID,DFID,01/02/2011,Aid to partner government,East and Central Africa,THE CROWN AGENTS,400140462,"1,000,000.00"
DFID,DFID,02/02/2011,Technical & Advisory services,"Security & Humanitarian, Middle East, Caribbean & Overseas Territories Division",Crown Agents Bank,400140508,"190,000.00"
DFID,DFID,01/02/2011,Aid to civil society organisations / NGOs,Policy and Research Directorate,ICAR (UK),400140539,"250,000.00"
DFID,DFID,01/02/2011,Aid to civil society organisations / NGOs,East and Central Africa, KENYA INDEPENDENT SCHOOLS ASSOCIATION,400140650,"28,595.00"
DFID,DFID,01/02/2011,Aid to international organisations,West and Southern Africa,UNAIDS,400140672,"170,418.00"
DFID,DFID,01/02/2011,Aid to other bilateral donors,"Security & Humanitarian, Middle East, Caribbean & Overseas Territories Division", Social Fund for Development ,400140675,"5,000,000.00"
DFID,DFID,03/02/2011,Technical & Advisory services,East and Central Africa,OXFAM,400140702,"269,200.00"
DFID,DFID,01/02/2011,Technical & Advisory services,East and Central Africa,COFFEY INTERNATIONAL DEVELOPMENT LTD,400140729,"25,964.32"
DFID,DFID,01/02/2011,Aid to civil society organisations / NGOs,East and Central Africa, INTERNATIONAL ALERT,400140752,"120,000.00"
DFID,DFID,01/02/2011,Technical & Advisory services,Western Asia and Stabilisation Division,PRICEWATERHOUSECOOPERS,400140853,"185,071.39"
DFID,DFID,01/02/2011,Technical & Advisory services,West and Southern Africa,ATOS CONSULTING LIMITED,400140881,"77,273.00"
DFID,DFID,01/02/2011,Medical & Health Supplies/Services,West and Southern Africa,THE CROWN AGENTS,400140926,"113,539.26"
DFID,DFID,01/02/2011,Technical & Advisory services,West and Southern Africa,ADAM SMITH INTERNATIONAL  LTD,400140930,"359,466.38"
DFID,DFID,01/02/2011,Technical & Advisory services,Communications Division,BRITISH COUNCIL,400140941,"570,906.81"
DFID,DFID,01/02/2011,Technical & Advisory services,Communications Division,BRITISH COUNCIL,400140941,"890,137.31"
DFID,DFID,02/02/2011,Technical & Advisory services,East and Central Africa,COFFEY INTERNATIONAL DEVELOPMENT LTD,400140973,"30,689.02"
DFID,DFID,01/02/2011,Aid to civil society organisations / NGOs,Policy and Research Directorate,Triple Line Consulting Limited,400140978,"512,728.73"
DFID,DFID,02/02/2011,Aid to civil society organisations / NGOs,East and Central Africa,POPULATION  SERVICES INTERNATIONAL,400140983,"2,060,443.00"
DFID,DFID,01/02/2011,Aid to international organisations,East and Central Africa,UNDP CONTRIBUTIONS ACCOUNT,400140984,"1,157,439.00"
DFID,DFID,02/02/2011,Aid to partner government,Asia Division,THE CROWN AGENTS,400140988,"2,699,400.97"
DFID,DFID,02/02/2011,Aid to other bilateral donors,Asia Division,GTZ GmBH Eschborn,400140989,"500,000.00"
DFID,DFID,18/02/2011,Communications,Business Solutions Division Level,FCO RECOVERIES UNIT,400140993,"827,514.90"
DFID,DFID,01/02/2011,Aid to partner government,Asia Division,THE CROWN AGENTS,400140995,"1,523,153.23"
DFID,DFID,02/02/2011,Technical & Advisory services,Asia Division,CROWN AGENTS (INDIA) PVT. LTD,400141017,"31,606.37"
DFID,DFID,03/02/2011,Technical & Advisory services,Asia Division,AUSAID,400141120,"30,862.00"
DFID,DFID,11/02/2011,Aid to international organisations,West and Southern Africa,International Monetary Fund (GBP),400141127,"219,082.00"
DFID,DFID,02/02/2011,Aid to international organisations,International Relations Division,BRITISH COUNCIL,400141145,"1,197,852.06"
DFID,DFID,09/02/2011,Aid to civil society organisations / NGOs,West and Southern Africa,POPULATION  SERVICES INTERNATIONAL,400141200,"3,534,635.00"
DFID,DFID,02/02/2011,Aid to civil society organisations / NGOs,Policy and Research Directorate,UK CONSORTIUM ON AIDS AND INT.DEV.,400141204,"69,250.00"
DFID,DFID,02/02/2011,Aid to international organisations,Asia Division, UNICEF,400141209,"40,000.00"
DFID,DFID,03/02/2011,Aid to international organisations,Policy and Research Directorate,IBRD (HSBC)  C/O THE WORLD BANK,400141216,"500,000.00"
DFID,DFID,03/02/2011,"Property Repairs, Maintenance & Alterations",Human Resources Division,MITIE Technical Facilities Management Ltd,400141298,"5,477.16"
DFID,DFID,03/02/2011,Technical & Advisory services,Human Resources Division,MITIE Technical Facilities Management Ltd,400141298,366.22
DFID,DFID,03/02/2011,Accommodation costs,Human Resources Division,MITIE Technical Facilities Management Ltd,400141298,"9,184.06"
DFID,DFID,03/02/2011,"Property Repairs, Maintenance & Alterations",Human Resources Division,MITIE Technical Facilities Management Ltd,400141298,"11,241.99"
DFID,DFID,03/02/2011,"Property Repairs, Maintenance & Alterations",Human Resources Division,MITIE Technical Facilities Management Ltd,400141298,"7,154.52"
DFID,DFID,03/02/2011,Technical & Advisory services,Human Resources Division,MITIE Technical Facilities Management Ltd,400141298,748.27
DFID,DFID,03/02/2011,Accommodation costs,Human Resources Division,MITIE Technical Facilities Management Ltd,400141298,"15,741.77"
DFID,DFID,03/02/2011,"Property Repairs, Maintenance & Alterations",Human Resources Division,MITIE Technical Facilities Management Ltd,400141298,"20,186.22"
DFID,DFID,04/02/2011,Aid to civil society organisations / NGOs,Policy and Research Directorate,THE GLOBAL FORUM ON MSM AND HIV,400141319,"49,426.69"
DFID,DFID,03/02/2011,Aid to international organisations,"Security & Humanitarian, Middle East, Caribbean & Overseas Territories Division",INTER AMERICAN DEVELOPMENT BANK,400141329,"750,000.00"
DFID,DFID,03/02/2011,Aid to civil society organisations / NGOs,Policy and Research Directorate,NAM PUBLICATIONS,400141335,"66,498.63"
DFID,DFID,04/02/2011,Aid to international organisations,East and Central Africa,NEPAD (International Partnership for Africa Fisheries),400141343,"631,370.00"
DFID,DFID,04/02/2011,Aid to civil society organisations / NGOs,"Security & Humanitarian, Middle East, Caribbean & Overseas Territories Division", Norwegian Refugee Council,400141352,"200,000.00"
DFID,DFID,12/02/2011,Technical & Advisory services,International Relations Division,OXFORD POLICY MANAGEMENT,400141372,"126,743.42"
DFID,DFID,22/02/2011,Communications,Business Solutions Division Level,OGC BUYING SOLUTIONS,400141373,"145,821.04"
DFID,DFID,03/02/2011,Aid to international organisations,Policy and Research Directorate, OECD,400141397,"250,000.00"
DFID,DFID,03/02/2011,Aid to civil society organisations / NGOs,"Security & Humanitarian, Middle East, Caribbean & Overseas Territories Division",OXFAM,400141401,"82,726.00"
DFID,DFID,08/02/2011,Technical & Advisory services,East and Central Africa,DELTA PARTNERSHIP SOLUTIONS LTD,400141403,"108,333.81"
DFID,DFID,09/02/2011,Aid to civil society organisations / NGOs,West and Southern Africa,STUDENTS PARTNERSHIP WORLDWIDE,400141404,"143,699.00"
DFID,DFID,09/02/2011,Aid to international organisations,Asia Division,IBRD HSBC T,400141415,"181,000.00"
DFID,DFID,15/02/2011,Technical & Advisory services,Asia Division,COFFEY INTERNATIONAL DEVELOPMENT LTD,400141423,"65,160.26"
DFID,DFID,08/02/2011,Aid to civil society organisations / NGOs,Communications Division,THE CROWN AGENTS,400141438,"161,209.67"
DFID,DFID,08/02/2011,Aid to civil society organisations / NGOs,Communications Division,THE CROWN AGENTS,400141441,"82,542.34"
DFID,DFID,08/02/2011,Aid to civil society organisations / NGOs,Communications Division,THE CROWN AGENTS,400141443,"189,067.03"
DFID,DFID,08/02/2011,Aid to civil society organisations / NGOs,Communications Division,THE CROWN AGENTS,400141446,"113,949.43"
DFID,DFID,08/02/2011,Aid to civil society organisations / NGOs,Communications Division,THE CROWN AGENTS,400141448,"98,908.90"
DFID,DFID,03/02/2011,Aid to partner government,West and Southern Africa,THE CROWN AGENTS,400141460,"183,333.33"
DFID,DFID,03/02/2011,Aid to civil society organisations / NGOs,Policy and Research Directorate,LIVERPOOL SCHOOL OF TROPICAL MEDICINE,400141461,"446,658.31"
DFID,DFID,04/02/2011,Technical & Advisory services,Western Asia and Stabilisation Division,MOTT MACDONALD LTD,400141494,"63,850.45"
DFID,DFID,15/02/2011,Technical & Advisory services,Asia Division,OPTIONS CONSULTANCY SERVICES LIMITED,400141606,"73,347.00"
DFID,DFID,15/02/2011,Technical & Advisory services,Asia Division,OPTIONS CONSULTANCY SERVICES LIMITED,400141607,"28,803.54"
DFID,DFID,04/02/2011,Technical & Advisory services,Asia Division,CONSTELLA FUTURES,400141610,"54,193.87"
DFID,DFID,07/02/2011,Aid to partner government,Asia Division,THE CROWN AGENTS,400141712,"5,000,000.00"
DFID,DFID,07/02/2011,Aid to partner government,West and Southern Africa,THE CROWN AGENTS,400141720,"30,000.00"
DFID,DFID,15/02/2011,Technical & Advisory services,Western Asia and Stabilisation Division,HLSP LIMITED,400141771,"114,140.42"
DFID,DFID,07/02/2011,Research & Development,Policy and Research Directorate,LONDON SCHOOL OF ECONOMICS AND POLITICAL SCIENCE,400141779,"126,675.67"
DFID,DFID,07/02/2011,Technical & Advisory services,West and Southern Africa,KPMG Inc.,400141804,"30,634.75"
DFID,DFID,07/02/2011,Research & Development,Policy and Research Directorate,BRITISH COUNCIL,400141813,"480,080.80"
DFID,DFID,07/02/2011,Technical & Advisory services,West and Southern Africa,CARE INTERNATIONAL,400141814,"30,113.61"
DFID,DFID,07/02/2011,Technical & Advisory services,West and Southern Africa,CARE INTERNATIONAL,400141815,"30,077.64"
DFID,DFID,07/02/2011,Technical & Advisory services,West and Southern Africa,CARE INTERNATIONAL,400141816,"28,719.46"
DFID,DFID,08/02/2011,Technical & Advisory services,Asia Division,Futures Group International India Pvt Ltd,400141817,"222,197.94"
DFID,DFID,07/02/2011,Technical & Advisory services,Policy and Research Directorate,HLSP LIMITED,400141822,"23,632.75"
DFID,DFID,11/02/2011,Technical & Advisory services,Policy and Research Directorate,THE CROWN AGENTS,400141826,"44,242.79"
DFID,DFID,09/02/2011,Technical & Advisory services,East and Central Africa,ADAM SMITH INTERNATIONAL  LTD,400141833,"62,636.95"
DFID,DFID,09/02/2011,Aid to partner government,Western Asia and Stabilisation Division,THE CROWN AGENTS,400141834,"2,800,000.00"
DFID,DFID,10/02/2011,Aid to partner government,Asia Division,THE CROWN AGENTS,400141835,"204,177.60"
DFID,DFID,10/02/2011,Aid to partner government,Asia Division,THE CROWN AGENTS,400141836,"416,307.58"
DFID,DFID,08/02/2011,Technical & Advisory services,Western Asia and Stabilisation Division,THE CROWN AGENTS,400141841,"91,419.00"
DFID,DFID,07/02/2011,Office Equipment,Western Asia and Stabilisation Division,THE CROWN AGENTS,400141842,275.84
DFID,DFID,07/02/2011,Medical & Health Supplies/Services,Western Asia and Stabilisation Division,THE CROWN AGENTS,400141842,"109,648.39"
DFID,DFID,07/02/2011,Communications,Western Asia and Stabilisation Division,THE CROWN AGENTS,400141842,"1,693.37"
DFID,DFID,07/02/2011,Accommodation costs,Western Asia and Stabilisation Division,THE CROWN AGENTS,400141842,"1,061.10"
DFID,DFID,07/02/2011,Medical & Health Supplies/Services,Western Asia and Stabilisation Division,THE CROWN AGENTS,400141842,146.35
DFID,DFID,07/02/2011,"Property Repairs, Maintenance & Alterations",Western Asia and Stabilisation Division,THE CROWN AGENTS,400141842,25
DFID,DFID,07/02/2011,Staff Business Travel and Subsistence,Western Asia and Stabilisation Division,THE CROWN AGENTS,400141842,119.1
DFID,DFID,07/02/2011,Vehicle Running Costs,Western Asia and Stabilisation Division,THE CROWN AGENTS,400141842,174.99
DFID,DFID,15/02/2011,Technical & Advisory services,Western Asia and Stabilisation Division,BRITISH COUNCIL,400141868,"44,107.37"
DFID,DFID,15/02/2011,Technical & Advisory services,West and Southern Africa,HEALTH PARTNERS INTERNATIONAL,400141929,"331,378.72"
DFID,DFID,08/02/2011,Aid to civil society organisations / NGOs,East and Central Africa,INTERNATIONAL INSTITUTE FOR ENVIRO,400141935,"70,512.93"
DFID,DFID,16/02/2011,Technical & Advisory services,West and Southern Africa,KPMG ANGOLA & MOZAMBIQUE,400141966,"44,727.83"
DFID,DFID,11/02/2011,Technical & Advisory services,Central Department Division,THE CROWN AGENTS,400141967,"36,250.00"
DFID,DFID,08/02/2011,Technical & Advisory services,Policy and Research Directorate,PRICEWATERHOUSECOOPERS,400141969,"156,219.00"
DFID,DFID,08/02/2011,Technical & Advisory services,Policy and Research Directorate,PRICEWATERHOUSECOOPERS,400141969,"156,219.00"
DFID,DFID,09/02/2011,Energy Costs,Human Resources Division,EDF ENERGY,400141975,"3,003.45"
DFID,DFID,09/02/2011,Energy Costs,Human Resources Division,EDF ENERGY,400141975,"28,629.32"
DFID,DFID,09/02/2011,Energy Costs,Human Resources Division,EDF ENERGY,400141975,1.83
DFID,DFID,09/02/2011,Energy Costs,Human Resources Division,EDF ENERGY,400141975,"3,175.63"
DFID,DFID,08/02/2011,Technical & Advisory services,"Security & Humanitarian, Middle East, Caribbean & Overseas Territories Division",Crown Agents Bank,400141979,"165,000.00"
DFID,DFID,08/02/2011,Technical & Advisory services,West and Southern Africa,ADAM SMITH INTERNATIONAL  LTD,400141985,"733,757.54"
DFID,DFID,08/02/2011,Technical & Advisory services,International Finance Division,PRICEWATERHOUSECOOPERS,400141991,"51,518.48"
DFID,DFID,08/02/2011,Technical & Advisory services,Policy and Research Directorate,PRICEWATERHOUSECOOPERS,400141993,"102,100.00"
DFID,DFID,08/02/2011,Technical & Advisory services,Policy and Research Directorate,PRICEWATERHOUSECOOPERS,400141993,"19,363.39"
DFID,DFID,09/02/2011,Technical & Advisory services,West and Southern Africa,PRICEWATERHOUSECOOPERS,400141994,"209,428.00"
DFID,DFID,09/02/2011,Technical & Advisory services,West and Southern Africa,PRICEWATERHOUSECOOPERS,400141994,"29,665.00"
DFID,DFID,08/02/2011,Technical & Advisory services,West and Southern Africa,ADAM SMITH INTERNATIONAL  LTD,400141995,"204,966.71"
DFID,DFID,10/02/2011,Technical & Advisory services,"Security & Humanitarian, Middle East, Caribbean & Overseas Territories Division",ALLNATIVE  SERVICES,400142015,"42,258.75"
DFID,DFID,11/02/2011,Technical & Advisory services,Policy and Research Directorate,UNIVERSITY OF BIRMINGHAM,400142018,"78,102.53"
DFID,DFID,08/02/2011,Technical & Advisory services,Asia Division,UNIVERSITY OF WOLVERHAMPTON,400142024,"118,725.51"
DFID,DFID,10/02/2011,Technical & Advisory services,West and Southern Africa,THE CROWN AGENTS,400142025,"49,516.47"
DFID,DFID,09/02/2011,Aid to civil society organisations / NGOs,International Relations Division,ECDPM (Euro Account),400142027,"64,177.50"
DFID,DFID,09/02/2011,Technical & Advisory services,East and Central Africa,Crown Agents Bank,400142030,"1,800,000.00"
DFID,DFID,09/02/2011,Aid to civil society organisations / NGOs,Policy and Research Directorate,ECDPM (Euro Account),400142032,"128,325.00"
DFID,DFID,09/02/2011,Technical & Advisory services,East and Central Africa,OXFORD POLICY MANAGEMENT,400142041,"22,850.00"
DFID,DFID,09/02/2011,Technical & Advisory services,East and Central Africa,OXFORD POLICY MANAGEMENT,400142041,"13,532.50"
DFID,DFID,14/02/2011,Aid to civil society organisations / NGOs,Asia Division,WESTMINSTER FOUNDATION FOR DEMOCRACY,400142045,"49,075.65"
DFID,DFID,08/02/2011,Technical & Advisory services,Asia Division,WSP INTERNATIONAL LIMITED,400142046,"881,729.91"
DFID,DFID,16/02/2011,Technical & Advisory services,East and Central Africa,WSP INTERNATIONAL LIMITED,400142055,"44,634.88"
DFID,DFID,11/02/2011,Aid to civil society organisations / NGOs,East and Central Africa,DANISH REFUGEE COUNCIL (DKK),400142056,"160,029.78"
DFID,DFID,09/02/2011,Technical & Advisory services,Asia Division,ADAM SMITH INTERNATIONAL  LTD,400142057,"65,544.30"
DFID,DFID,08/02/2011,Aid to international organisations,West and Southern Africa,UNDP CONTRIBUTIONS GBP,400142060,"4,000,000.00"
DFID,DFID,08/02/2011,Aid to international organisations,"Security & Humanitarian, Middle East, Caribbean & Overseas Territories Division",IBRD (HSBC)  C/O THE WORLD BANK,400142061,"316,750.00"
DFID,DFID,08/02/2011,Aid to civil society organisations / NGOs,East and Central Africa,SAVE THE CHILDREN,400142062,"202,448.00"
DFID,DFID,15/02/2011,Technical & Advisory services,"Security & Humanitarian, Middle East, Caribbean & Overseas Territories Division",ADAM SMITH INTERNATIONAL  LTD,400142063,"94,736.50"
DFID,DFID,15/02/2011,Technical & Advisory services,"Security & Humanitarian, Middle East, Caribbean & Overseas Territories Division",ADAM SMITH INTERNATIONAL  LTD,400142063,"17,584.01"
DFID,DFID,08/02/2011,Technical & Advisory services,West and Southern Africa,BRITISH COUNCIL,400142066,"56,634.97"
DFID,DFID,10/02/2011,Technical & Advisory services,East and Central Africa,ADAM SMITH INTERNATIONAL  LTD,400142067,"128,485.29"
DFID,DFID,09/02/2011,Aid to civil society organisations / NGOs,West and Southern Africa,African Foundation for Development Sierra Leone ,400142169,"65,845.96"
DFID,DFID,10/02/2011,Aid to civil society organisations / NGOs,East and Central Africa,INTERPEACE,400142255,"289,099.02"
DFID,DFID,15/02/2011,Technical & Advisory services,International Relations Division,COFFEY INTERNATIONAL DEVELOPMENT LTD,400142288,"39,783.22"
DFID,DFID,11/02/2011,Hardware,Business Solutions Division Level,ASSURIX LIMITED,400142311,"83,509.40"
DFID,DFID,09/02/2011,Technical & Advisory services,Policy and Research Directorate,CAB INTERNATIONAL,400142317,"91,152.40"
DFID,DFID,10/02/2011,Aid to civil society organisations / NGOs,Asia Division,Helvetas Nepal,400142326,"1,351,888.88"
DFID,DFID,09/02/2011,Technical & Advisory services,Asia Division,CAMBRIDGE EDUCATION LTD,400142329,"131,664.68"
DFID,DFID,09/02/2011,Technical & Advisory services,Asia Division,CAMBRIDGE EDUCATION LTD,400142330,"120,157.46"
DFID,DFID,09/02/2011,Technical & Advisory services,Asia Division,NATURAL RESOURCES INTERN,400142331,"79,889.99"
DFID,DFID,09/02/2011,Technical & Advisory services,Asia Division,NATURAL RESOURCES INTERN,400142334,"57,910.60"
DFID,DFID,09/02/2011,Technical & Advisory services,International Finance Division,EMERGING MARKETS GROUP,400142337,"47,520.00"
DFID,DFID,09/02/2011,Technical & Advisory services,East and Central Africa,ATOS CONSULTING LIMITED,400142344,"236,088.66"
DFID,DFID,09/02/2011,Staff training & Conferences,"Security & Humanitarian, Middle East, Caribbean & Overseas Territories Division",MINISTRY OF DEFENCE - HQ BRITFOR,400142347,"26,530.00"
DFID,DFID,09/02/2011,Medical & Health Supplies/Services,West and Southern Africa,THE CROWN AGENTS,400142384,"79,326.78"
DFID,DFID,09/02/2011,Technical & Advisory services,Policy and Research Directorate,IIED ,400142385,"87,048.00"
DFID,DFID,10/02/2011,Aid to international organisations,West and Southern Africa,WFP CONTRIBUTIONS UNIT,400142391,"950,000.00"
DFID,DFID,09/02/2011,Technical & Advisory services,West and Southern Africa,OPTIONS CONSULTANCY SERVICES LIMITED,400142394,"118,497.65"
DFID,DFID,09/02/2011,Technical & Advisory services,Western Asia and Stabilisation Division,OXFORD POLICY MANAGEMENT,400142398,"74,368.01"
DFID,DFID,11/02/2011,Aid to civil society organisations / NGOs,West and Southern Africa,WEST AFRICAN NGO NETWORK,400142405,"208,196.00"
DFID,DFID,09/02/2011,Technical & Advisory services,East and Central Africa,HLSP LIMITED,400142407,"38,653.79"
DFID,DFID,11/02/2011,Aid to civil society organisations / NGOs,West and Southern Africa,FinMark  TRUST,400142409,"893,329.96"
DFID,DFID,10/02/2011,Technical & Advisory services,East and Central Africa,ADAM SMITH INTERNATIONAL  LTD,400142490,"49,179.68"
DFID,DFID,14/02/2011,Aid to civil society organisations / NGOs,West and Southern Africa,VOLUNTARY SERVICE OVERSEAS (YOHANNES TESFAMICHAEL),400142530,"100,000.00"
DFID,DFID,14/02/2011,Aid to civil society organisations / NGOs,West and Southern Africa,VOLUNTARY SERVICE OVERSEAS (YOHANNES TESFAMICHAEL),400142530,"4,798.00"
DFID,DFID,14/02/2011,Technical & Advisory services,West and Southern Africa,Society for Family  Health,400142532,"464,867.55"
DFID,DFID,28/02/2011,Aid to civil society organisations / NGOs,West and Southern Africa,EGPAF,400142542,"381,293.82"
DFID,DFID,15/02/2011,Technical & Advisory services,Asia Division,CAMBRIDGE EDUCATION CONSUL,400142546,"32,691.20"
DFID,DFID,11/02/2011,Aid to civil society organisations / NGOs,Western Asia and Stabilisation Division,OXFAM,400142557,"1,760,211.00"
DFID,DFID,17/02/2011,Aid to civil society organisations / NGOs,West and Southern Africa,PLANNED PARENTHOOD ASSOCIATION OF GHANA,400142565,"42,179.75"
DFID,DFID,15/02/2011,Technical & Advisory services,Policy and Research Directorate,KPMG Development Services,400142578,"33,274.34"
DFID,DFID,11/02/2011,Technical & Advisory services,"Security & Humanitarian, Middle East, Caribbean & Overseas Territories Division",ADAM SMITH INTERNATIONAL  LTD,400142657,"38,489.35"
DFID,DFID,11/02/2011,Aid to international organisations,West and Southern Africa,UNDP CONTRIBUTIONS GBP,400142660,"1,000,000.00"
DFID,DFID,11/02/2011,Technical & Advisory services,Evaluation Department,ITAD LTD,400142665,"52,326.66"
DFID,DFID,15/02/2011,Aid to civil society organisations / NGOs,Policy and Research Directorate,GVEP INTERNATIONAL LTD,400142735,"189,001.50"
DFID,DFID,14/02/2011,Aid to civil society organisations / NGOs,Policy and Research Directorate,NIKE FOUNDATION,400142744,"1,354,513.61"
DFID,DFID,25/02/2011,Aid to civil society organisations / NGOs,"Security & Humanitarian, Middle East, Caribbean & Overseas Territories Division",The Centre for Humanitarian Dialogue,400142761,"125,000.00"
DFID,DFID,11/02/2011,Technical & Advisory services,Policy and Research Directorate,Triple Line Consulting Limited,400142762,"573,955.79"
DFID,DFID,11/02/2011,Technical & Advisory services,Policy and Research Directorate,ITAD LTD,400142764,"31,938.00"
DFID,DFID,15/02/2011,Technical & Advisory services,West and Southern Africa,CARE INTERNATIONAL UK,400142769,"53,560.16"
DFID,DFID,11/02/2011,Aid to international organisations,"Security & Humanitarian, Middle East, Caribbean & Overseas Territories Division",ISLAMIC DEVELOPMENT BANK,400142816,"350,000.00"
DFID,DFID,14/02/2011,Technical & Advisory services,Asia Division,CARE INTERNATIONAL,400142819,"33,579.30"
DFID,DFID,14/02/2011,Aid to civil society organisations / NGOs,Policy and Research Directorate,KPMG DEVELOPMENT SERVICE,400142821,"605,256.60"
DFID,DFID,14/02/2011,Technical & Advisory services,Asia Division,CARE INTERNATIONAL,400142825,"33,579.30"
DFID,DFID,14/02/2011,Aid to civil society organisations / NGOs,Policy and Research Directorate,KPMG DEVELOPMENT SERVICE,400142826,"489,133.16"
DFID,DFID,14/02/2011,Technical & Advisory services,Asia Division,CARE INTERNATIONAL,400142828,"33,582.51"
DFID,DFID,15/02/2011,Technical & Advisory services,Asia Division,CARE INTERNATIONAL,400142830,"134,650.63"
DFID,DFID,14/02/2011,Technical & Advisory services,Asia Division,CARE INTERNATIONAL,400142831,"33,579.30"
DFID,DFID,14/02/2011,Technical & Advisory services,Asia Division,CARE INTERNATIONAL,400142834,"33,579.30"
DFID,DFID,15/02/2011,Technical & Advisory services,Asia Division,CARE INTERNATIONAL,400142836,"33,579.30"
DFID,DFID,14/02/2011,Technical & Advisory services,Asia Division,CARE INTERNATIONAL,400142838,"33,579.30"
DFID,DFID,15/02/2011,Aid to civil society organisations / NGOs,Asia Division,SAVE THE CHILDREN,400142846,"307,134.43"
DFID,DFID,11/02/2011,Aid to international organisations,Policy and Research Directorate,IBRD HSBC T,400142850,"2,333,333.00"
DFID,DFID,15/02/2011,Aid to civil society organisations / NGOs,West and Southern Africa,Catholic Commission for Justice and Peace,400142854,"324,672.54"
DFID,DFID,17/02/2011,Technical & Advisory services,West and Southern Africa,THE CROWN AGENTS,400142856,"82,206.98"
DFID,DFID,15/02/2011,Aid to civil society organisations / NGOs,West and Southern Africa,Malawi Red Cross Society,400142857,"43,624.01"
DFID,DFID,15/02/2011,Research & Development,Policy and Research Directorate,NRI LTD.,400142863,"1,743,296.57"
DFID,DFID,14/02/2011,Technical & Advisory services,Policy and Research Directorate,THE IDL GROUP,400142864,"9,229.99"
DFID,DFID,14/02/2011,Technical & Advisory services,Policy and Research Directorate,THE IDL GROUP,400142864,"29,442.25"
DFID,DFID,15/02/2011,Aid to civil society organisations / NGOs,"Security & Humanitarian, Middle East, Caribbean & Overseas Territories Division",HARVARD UNIVERSITY (OFFICE FOR SPONSERED PROGRAMS),400142865,"125,962.38"
DFID,DFID,15/02/2011,Technical & Advisory services,Western Asia and Stabilisation Division,HLSP LIMITED,400142868,"50,962.01"
DFID,DFID,15/02/2011,Technical & Advisory services,East and Central Africa,ADAM SMITH INTERNATIONAL  LTD,400142869,"203,170.00"
DFID,DFID,15/02/2011,Technical & Advisory services,East and Central Africa,ADAM SMITH INTERNATIONAL  LTD,400142869,"105,861.52"
DFID,DFID,14/02/2011,Aid to civil society organisations / NGOs,West and Southern Africa,Rensida,400142876,"38,251.29"
DFID,DFID,14/02/2011,Technical & Advisory services,West and Southern Africa,ONE WORLD,400142879,"75,779.00"
DFID,DFID,14/02/2011,Technical & Advisory services,West and Southern Africa,ONE WORLD,400142884,"83,079.00"
DFID,DFID,14/02/2011,Technical & Advisory services,West and Southern Africa,ONE WORLD,400142886,"53,742.00"
DFID,DFID,15/02/2011,Aid to civil society organisations / NGOs,West and Southern Africa,ALAFA,400142895,"228,111.00"
DFID,DFID,12/02/2011,Technical & Advisory services,Asia Division,TRIBAL HELM CORPORATION LTD,400142898,"49,040.00"
DFID,DFID,14/02/2011,Research & Development,Policy and Research Directorate,International Development UEA,400142899,"26,804.40"
DFID,DFID,14/02/2011,Technical & Advisory services,Asia Division,TRIBAL HELM CORPORATION LTD,400142900,"129,848.18"
DFID,DFID,14/02/2011,Technical & Advisory services,Policy and Research Directorate,WRENmedia,400142902,"24,138.54"
DFID,DFID,15/02/2011,Technical & Advisory services,West and Southern Africa,GRM INTERNATIONAL LTD,400142906,"66,133.64"
DFID,DFID,14/02/2011,Aid to civil society organisations / NGOs,Policy and Research Directorate,Clinton Health Access Initiative,400142907,"65,919.72"
DFID,DFID,22/02/2011,Technical & Advisory services,Asia Division,GRM INTERNATIONAL LTD,400142908,"48,794.77"
DFID,DFID,15/02/2011,Technical & Advisory services,Western Asia and Stabilisation Division,HTSPE LTD,400142909,"25,172.10"
DFID,DFID,14/02/2011,Research & Development,Policy and Research Directorate,International Development UEA,400142910,"29,989.20"
DFID,DFID,12/02/2011,Technical & Advisory services,East and Central Africa,THE CROWN AGENTS,400142911,"69,580.00"
DFID,DFID,12/02/2011,Aid to civil society organisations / NGOs,East and Central Africa,ACTION AGAINST HUNGER UK,400142914,"940,814.24"
DFID,DFID,16/02/2011,Technical & Advisory services,West and Southern Africa,EFFECTIVE DEVELOPMENT GROUP (EDG),400142916,"120,078.25"
DFID,DFID,12/02/2011,Technical & Advisory services,West and Southern Africa,GRM INTERNATIONAL LTD,400142918,"109,667.68"
DFID,DFID,14/02/2011,Aid to civil society organisations / NGOs,East and Central Africa,DANISH REFUGEE COUNCIL,400142919,"30,000.00"
DFID,DFID,15/02/2011,Technical & Advisory services,West and Southern Africa,GRM INTERNATIONAL LTD,400142922,"55,527.21"
DFID,DFID,15/02/2011,Technical & Advisory services,Asia Division,GHK CONSULTING LTD,400142932,"41,423.00"
DFID,DFID,14/02/2011,Aid to civil society organisations / NGOs,"Security & Humanitarian, Middle East, Caribbean & Overseas Territories Division",HSRG School for International Studies,400142937,"169,008.19"
DFID,DFID,14/02/2011,Technical & Advisory services,Asia Division,NATURAL RESOURCES INTERN,400142939,"28,171.32"
DFID,DFID,15/02/2011,Technical & Advisory services,West and Southern Africa,THE CROWN AGENTS,400142948,"38,284.87"
DFID,DFID,12/02/2011,Technical & Advisory services,West and Southern Africa,HTSPE LTD,400142949,"43,417.19"
DFID,DFID,12/02/2011,Aid to civil society organisations / NGOs,East and Central Africa,CARE INTERNATIONAL,400142950,"250,346.92"
DFID,DFID,12/02/2011,Aid to civil society organisations / NGOs,Policy and Research Directorate,WATERAID,400142954,"66,556.00"
DFID,DFID,12/02/2011,Technical & Advisory services,East and Central Africa,LIVERPOOL ASSOCIATES IN TROP. HEALTH,400142962,"144,923.79"
DFID,DFID,15/02/2011,Technical & Advisory services,Western Asia and Stabilisation Division,RIVER PATH ASSOCIATES,400142967,"32,236.40"
DFID,DFID,15/02/2011,Aid to civil society organisations / NGOs,West and Southern Africa,PLAN MALAWI,400142969,"59,847.00"
DFID,DFID,14/02/2011,Technical & Advisory services,Asia Division,INFRASTRUCTURE PROFESSIONALS ENTERPRISE,400142981,"25,364.59"
DFID,DFID,12/02/2011,Emergency / Humanitarian Assistance,"Security & Humanitarian, Middle East, Caribbean & Overseas Territories Division",THE CROWN AGENTS,400142984,"71,317.80"
DFID,DFID,12/02/2011,Aid to other bilateral donors,Policy and Research Directorate,MET OFFICE,400142988,"40,000.00"
DFID,DFID,12/02/2011,Technical & Advisory services,"Security & Humanitarian, Middle East, Caribbean & Overseas Territories Division",DAI EUROPE LIMITED,400142996,"49,082.56"
DFID,DFID,14/02/2011,Technical & Advisory services,Asia Division,CARE INTERNATIONAL,400143004,"134,650.63"
DFID,DFID,14/02/2011,Technical & Advisory services,Asia Division,CARE INTERNATIONAL,400143005,"134,650.63"
DFID,DFID,12/02/2011,Technical & Advisory services,West and Southern Africa,HTSPE LTD,400143009,"321,397.00"
DFID,DFID,12/02/2011,Technical & Advisory services,West and Southern Africa,HTSPE LTD,400143009,"180,592.16"
DFID,DFID,15/02/2011,Technical & Advisory services,Asia Division,PRICEWATERHOUSECOOPERS PRIVATE LTD,400143010,"200,017.39"
DFID,DFID,12/02/2011,Research & Development,Policy and Research Directorate,UNIVERSITY OF LEEDS,400143023,"340,266.00"
DFID,DFID,12/02/2011,Software,Business Solutions Division Level,Ninian Solutions Ltd,400143027,"93,464.00"
DFID,DFID,15/02/2011,Research & Development,Policy and Research Directorate,UNIVERSITY OF BIRMINGHAM,400143029,"162,273.30"
DFID,DFID,15/02/2011,Technical & Advisory services,East and Central Africa,HELPAGE INTERNATIONAL,400143030,"48,000.00"
DFID,DFID,12/02/2011,Research & Development,Policy and Research Directorate, University Of Oxford,400143041,"156,780.06"
DFID,DFID,15/02/2011,Technical & Advisory services,Policy and Research Directorate,HLSP LIMITED,400143043,"25,969.16"
DFID,DFID,12/02/2011,Technical & Advisory services,Asia Division,HEALTH PARTNERS INTERNATIONAL,400143045,"31,824.85"
DFID,DFID,14/02/2011,"Property Repairs, Maintenance & Alterations",Asia Division,ADEX Corporation Limited,400143063,"26,441.10"
DFID,DFID,14/02/2011,Aid to civil society organisations / NGOs,"Security & Humanitarian, Middle East, Caribbean & Overseas Territories Division",DEVELOPMENT INITIATIVES,400143135,"45,207.00"
DFID,DFID,15/02/2011,Aid to international organisations,Policy and Research Directorate,Medicines for Malaria Venture,400143136,"4,000,000.00"
DFID,DFID,15/02/2011,Aid to civil society organisations / NGOs,International Relations Division,EAST WEST MANAGEMENT INSTITUTE,400143138,"47,771.00"
DFID,DFID,15/02/2011,Aid to civil society organisations / NGOs,East and Central Africa,EISA,400143139,"183,887.18"
DFID,DFID,15/02/2011,Aid to civil society organisations / NGOs,West and Southern Africa,Soul City,400143158,"1,844,037.00"
DFID,DFID,15/02/2011,Aid to civil society organisations / NGOs,West and Southern Africa,Soul City,400143158,"971,207.00"
DFID,DFID,14/02/2011,Aid to international organisations,International Relations Division, OECD,400143159,"250,000.00"
DFID,DFID,14/02/2011,Technical & Advisory services,"Security & Humanitarian, Middle East, Caribbean & Overseas Territories Division",DAI EUROPE LIMITED,400143187,"60,349.49"
DFID,DFID,14/02/2011,Aid to civil society organisations / NGOs,East and Central Africa,RED R,400143189,"198,138.34"
DFID,DFID,14/02/2011,Research & Development,West and Southern Africa,HEALTH PARTNERS INTERNATIONAL,400143196,"58,952.64"
DFID,DFID,14/02/2011,Aid to civil society organisations / NGOs,"Security & Humanitarian, Middle East, Caribbean & Overseas Territories Division",SAVE THE CHILDREN,400143201,"79,620.00"
DFID,DFID,15/02/2011,Aid to civil society organisations / NGOs,"Security & Humanitarian, Middle East, Caribbean & Overseas Territories Division", Fond Inst Uni Htes Etudes Int(SMALL ARMS SURVEY),400143216,"62,500.00"
DFID,DFID,14/02/2011,Aid to civil society organisations / NGOs,Policy and Research Directorate,ISLAMIC RELIEF,400143224,"410,000.00"
DFID,DFID,15/02/2011,Aid to international organisations,East and Central Africa,UNDP (USD) ACCOUNT,400143238,"2,000,000.00"
DFID,DFID,15/02/2011,Aid to other bilateral donors,Asia Division,WHO (GENEVA),400143240,"443,312.00"
DFID,DFID,15/02/2011,Aid to civil society organisations / NGOs,West and Southern Africa,CARE INTERNATIONAL,400143247,"58,954.14"
DFID,DFID,15/02/2011,Aid to international organisations,Policy and Research Directorate,United Nations General Trust Fund Account,400143249,"120,000.00"
DFID,DFID,14/02/2011,Aid to civil society organisations / NGOs,West and Southern Africa,SAVE THE CHILDREN UK,400143250,"180,389.00"
DFID,DFID,16/02/2011,Aid to civil society organisations / NGOs,Finance and Corporate Performance Division,CMI MICHELSEN INSTITUTE,400143251,"50,000.00"
DFID,DFID,14/02/2011,Debt Relief,International Finance Division,INTERNATIONAL DEVELOPMENT ASSOCIATION 'B ACC',400143254,"47,250,000.00"
DFID,DFID,14/02/2011,Aid to civil society organisations / NGOs,East and Central Africa,TEARFUND,400143259,"765,436.00"
DFID,DFID,15/02/2011,Aid to international organisations,Asia Division,UNDP CONTRIBUTIONS ACCOUNT,400143261,"1,500,000.00"
DFID,DFID,14/02/2011,Technical & Advisory services,Western Asia and Stabilisation Division,ADAM SMITH INTERNATIONAL  LTD,400143262,"295,115.19"
DFID,DFID,17/02/2011,Legal costs,Finance and Corporate Performance Division,THE CROWN AGENTS,400143266,"1,481.89"
DFID,DFID,17/02/2011,Legal costs,Finance and Corporate Performance Division,THE CROWN AGENTS,400143266,191.2
DFID,DFID,17/02/2011,Legal costs,"Security & Humanitarian, Middle East, Caribbean & Overseas Territories Division",THE CROWN AGENTS,400143266,"118,177.81"
DFID,DFID,17/02/2011,Legal costs,Policy and Research Directorate,THE CROWN AGENTS,400143266,"1,601.30"
DFID,DFID,17/02/2011,Legal costs,Policy and Research Directorate,THE CROWN AGENTS,400143266,"1,722.32"
DFID,DFID,17/02/2011,Legal costs,"Security & Humanitarian, Middle East, Caribbean & Overseas Territories Division",THE CROWN AGENTS,400143266,"1,457.90"
DFID,DFID,17/02/2011,Legal costs,"Security & Humanitarian, Middle East, Caribbean & Overseas Territories Division",THE CROWN AGENTS,400143266,"2,294.40"
DFID,DFID,17/02/2011,Legal costs,"Security & Humanitarian, Middle East, Caribbean & Overseas Territories Division",THE CROWN AGENTS,400143266,"15,456.00"
DFID,DFID,17/02/2011,Legal costs,"Security & Humanitarian, Middle East, Caribbean & Overseas Territories Division",THE CROWN AGENTS,400143266,78.75
DFID,DFID,17/02/2011,Legal costs,"Security & Humanitarian, Middle East, Caribbean & Overseas Territories Division",THE CROWN AGENTS,400143266,42.84
DFID,DFID,17/02/2011,Legal costs,West and Southern Africa,THE CROWN AGENTS,400143266,99.4
DFID,DFID,17/02/2011,Legal costs,"Security & Humanitarian, Middle East, Caribbean & Overseas Territories Division",THE CROWN AGENTS,400143266,167.3
DFID,DFID,21/02/2011,Aid to international organisations,Policy and Research Directorate,IBRD - EFO,400143278,"125,000.00"
DFID,DFID,14/02/2011,Aid to civil society organisations / NGOs,Policy and Research Directorate,BBC WORLD SERVICE TRUST,400143279,"279,992.00"
DFID,DFID,16/02/2011,Aid to civil society organisations / NGOs,West and Southern Africa,Theatre for a Change,400143448,"52,485.00"
DFID,DFID,16/02/2011,Aid to international organisations,East and Central Africa,Registered Trustees of the Financial Sector Deepening Trust,400143456,"2,000,000.00"
DFID,DFID,17/02/2011,Aid to civil society organisations / NGOs,West and Southern Africa,NATIONAL DEMOCTRATIC INSTITUTE,400143472,"373,100.00"
DFID,DFID,15/02/2011,Aid to civil society organisations / NGOs,West and Southern Africa,VSO,400143501,"109,299.00"
DFID,DFID,15/02/2011,Aid to civil society organisations / NGOs,Finance and Corporate Performance Division,Development Initiatives Poverty Research Ltd,400143519,"59,391.00"
DFID,DFID,15/02/2011,Aid to civil society organisations / NGOs,Finance and Corporate Performance Division,Development Initiatives Poverty Research Ltd,400143521,"46,282.00"
DFID,DFID,15/02/2011,Aid to civil society organisations / NGOs,Finance and Corporate Performance Division,Development Initiatives Poverty Research Ltd,400143522,"66,602.00"
DFID,DFID,15/02/2011,Aid to civil society organisations / NGOs,Policy and Research Directorate,IHRA (INTL HARM REDUCTION ASSC),400143534,"152,439.44"
DFID,DFID,15/02/2011,Technical & Advisory services,West and Southern Africa,OVERSEAS DEVELOPMENT INSTITUTE,400143536,"26,226.24"
DFID,DFID,16/02/2011,Technical & Advisory services,Policy and Research Directorate,KPMG Development Services,400143552,"32,134.42"
DFID,DFID,16/02/2011,Aid to international organisations,Policy and Research Directorate,IBRD - EFO,400143561,"125,000.00"
DFID,DFID,16/02/2011,Technical & Advisory services,West and Southern Africa,DAI EUROPE LIMITED,400143562,"130,994.98"
DFID,DFID,15/02/2011,Technical & Advisory services,"Security & Humanitarian, Middle East, Caribbean & Overseas Territories Division",DAI EUROPE LIMITED,400143565,"29,452.71"
DFID,DFID,15/02/2011,Technical & Advisory services,"Security & Humanitarian, Middle East, Caribbean & Overseas Territories Division",DAI EUROPE LIMITED,400143566,"55,867.53"
DFID,DFID,15/02/2011,Aid to civil society organisations / NGOs,West and Southern Africa,MARIE STOPES INTERNATIONAL,400143567,"127,730.00"
DFID,DFID,15/02/2011,Research & Development,Policy and Research Directorate,UNIVERSITY OF  OXFORD,400143569,"282,261.98"
DFID,DFID,15/02/2011,Research & Development,Policy and Research Directorate,UNIVERSITY OF  OXFORD,400143569,"137,898.10"
DFID,DFID,17/02/2011,Technical & Advisory services,West and Southern Africa, Bank of Zambia,400143571,"29,000.00"
DFID,DFID,15/02/2011,Aid to international organisations,Policy and Research Directorate,IBRD HSBC T,400143588,"151,000.00"
DFID,DFID,17/02/2011,Aid to civil society organisations / NGOs,"Security & Humanitarian, Middle East, Caribbean & Overseas Territories Division",Centre for Research on the Epidemiology of Disasters,400143589,"75,073.25"
DFID,DFID,15/02/2011,Technical & Advisory services,East and Central Africa,ATOS CONSULTING LIMITED,400143591,"255,306.03"
DFID,DFID,16/02/2011,Aid to civil society organisations / NGOs,International Relations Division,OVERSEAS DEVELOPMENT INSTITUTE (ODI),400143724,"100,519.47"
DFID,DFID,16/02/2011,Aid to civil society organisations / NGOs,Asia Division,INTERNATIONAL RESCUE COMMITTEE UK,400143736,"171,161.00"
DFID,DFID,16/02/2011,Aid to partner government,Asia Division,THE CROWN AGENTS,400143761,"381,471.54"
DFID,DFID,28/02/2011,Aid to civil society organisations / NGOs,East and Central Africa,REFUGEE LAW PROJECT,400143763,"55,268.00"
DFID,DFID,16/02/2011,Aid to international organisations,Policy and Research Directorate,International Monetary Fund (GBP),400143774,"300,000.00"
DFID,DFID,16/02/2011,Aid to partner government,Asia Division,THE CROWN AGENTS,400143775,"679,585.00"
DFID,DFID,21/02/2011,Aid to civil society organisations / NGOs,West and Southern Africa,NELSON MANDELA FOUNDATION,400143780,"49,177.76"
DFID,DFID,17/02/2011,Debt Relief,International Finance Division,AFRICAN  DEVELOPMENT BANK GROUP,400143886,"10,426,349.92"
DFID,DFID,18/02/2011,Aid to civil society organisations / NGOs,Asia Division,CFNA,400143888,"30,880.00"
DFID,DFID,17/02/2011,Aid to civil society organisations / NGOs,Policy and Research Directorate,OVERSEAS DEVELOPMENT INSTITUTE (ODI),400143890,"64,984.58"
DFID,DFID,24/02/2011,Legal costs,International Finance Division,THE CROWN AGENTS,400143918,"2,079.30"
DFID,DFID,24/02/2011,Legal costs,Finance and Corporate Performance Division,THE CROWN AGENTS,400143918,406.3
DFID,DFID,24/02/2011,Technical & Advisory services,West and Southern Africa,THE CROWN AGENTS,400143918,"2,915.80"
DFID,DFID,24/02/2011,Technical & Advisory services,East and Central Africa,THE CROWN AGENTS,400143918,"2,822.37"
DFID,DFID,24/02/2011,Technical & Advisory services,East and Central Africa,THE CROWN AGENTS,400143918,"15,917.40"
DFID,DFID,22/02/2011,Technical & Advisory services,Policy and Research Directorate,UNIVERSITY OF BIRMINGHAM,400143926,"51,316.52"
DFID,DFID,22/02/2011,Technical & Advisory services,Policy and Research Directorate,UNIVERSITY OF BIRMINGHAM,400143926,821.44
DFID,DFID,18/02/2011,Aid to civil society organisations / NGOs,West and Southern Africa,POLICY AND LEGAL ADVOCACY CENTRE,400143929,"136,330.00"
DFID,DFID,18/02/2011,Aid to other bilateral donors,"Security & Humanitarian, Middle East, Caribbean & Overseas Territories Division",KfW Development Bank,400143933,"25,335.00"
DFID,DFID,17/02/2011,Technical & Advisory services,West and Southern Africa,Cambridge  Education Limited,400143939,"1,423,114.18"
DFID,DFID,17/02/2011,Technical & Advisory services,East and Central Africa,HAREWELLE INTERNATIONAL LIMITED,400143944,"29,746.24"
DFID,DFID,17/02/2011,Technical & Advisory services,West and Southern Africa,THE CROWN AGENTS,400143945,"63,882.96"
DFID,DFID,17/02/2011,Technical & Advisory services,West and Southern Africa,THE CROWN AGENTS,400143958,"107,411.04"
DFID,DFID,17/02/2011,Technical & Advisory services,Asia Division,Harewelle International Limited.,400143975,"74,020.22"
DFID,DFID,17/02/2011,Aid to civil society organisations / NGOs,Asia Division,Harewelle International Limited.,400143975,"36,965.45"
DFID,DFID,18/02/2011,Aid to other bilateral donors,West and Southern Africa,UNDP (UK),400143997,"200,000.00"
DFID,DFID,18/02/2011,Aid to civil society organisations / NGOs,"Security & Humanitarian, Middle East, Caribbean & Overseas Territories Division",Carnegie Endowment for International Peace,400144002,"162,500.00"
DFID,DFID,17/02/2011,Aid to civil society organisations / NGOs,"Security & Humanitarian, Middle East, Caribbean & Overseas Territories Division",WORLD VISION UNITED KINGDOM,400144008,"160,425.00"
DFID,DFID,18/02/2011,Technical & Advisory services,Asia Division,BMB MOTT  MACDONALD,400144017,"68,810.42"
DFID,DFID,17/02/2011,Aid to civil society organisations / NGOs,Asia Division,Harewelle International Limited.,400144020,"1,855,176.00"
DFID,DFID,17/02/2011,Aid to international organisations,East and Central Africa,UNFPA,400144022,"107,666.00"
DFID,DFID,17/02/2011,Software,Business Solutions Division Level,TRUSTMARQUE SOLUTIONS LTD,400144024,"89,259.58"
DFID,DFID,18/02/2011,Technical & Advisory services,Asia Division,GHK CONSULTING LTD,400144076,"12,111.00"
DFID,DFID,18/02/2011,Technical & Advisory services,Asia Division,GHK CONSULTING LTD,400144076,"26,503.00"
DFID,DFID,18/02/2011,Aid to international organisations,Policy and Research Directorate,IBRD HSBC T,400144080,"150,000.00"
DFID,DFID,21/02/2011,Aid to civil society organisations / NGOs,East and Central Africa,MEDAIR,400144088,"802,598.00"
DFID,DFID,18/02/2011,Aid to partner government,Asia Division,THE CROWN AGENTS,400144089,"166,389.68"
DFID,DFID,18/02/2011,Aid to civil society organisations / NGOs,Communications Division,THE CROWN AGENTS,400144096,"130,988.45"
DFID,DFID,18/02/2011,Research & Development,Policy and Research Directorate,GBS Re DFID Third Party Monies,400144099,"30,016.93"
DFID,DFID,18/02/2011,Aid to civil society organisations / NGOs,Policy and Research Directorate,Triple Line Consulting Limited,400144101,"267,409.94"
DFID,DFID,18/02/2011,Technical & Advisory services,West and Southern Africa,MALARIA CONSORTIUM,400144103,"36,400.00"
DFID,DFID,18/02/2011,Technical & Advisory services,Asia Division,PRICEWATERHOUSECOOPERS DEVELOPMENT,400144117,"65,618.00"
DFID,DFID,18/02/2011,Technical & Advisory services,Asia Division,PRICEWATERHOUSECOOPERS DEVELOPMENT,400144120,"37,728.00"
DFID,DFID,18/02/2011,Technical & Advisory services,East and Central Africa,MOTT MACDONALD LTD,400144122,"72,495.00"
DFID,DFID,18/02/2011,Technical & Advisory services,Asia Division,PRICEWATERHOUSECOOPERS DEVELOPMENT,400144123,"37,778.00"
DFID,DFID,18/02/2011,Technical & Advisory services,Asia Division,PRICEWATERHOUSECOOPERS DEVELOPMENT,400144125,"37,770.00"
DFID,DFID,18/02/2011,Aid to partner government,Asia Division,THE CROWN AGENTS,400144126,"308,943.89"
DFID,DFID,18/02/2011,Aid to international organisations,International Finance Division,IBRD HSBC T,400144127,"813,591.06"
DFID,DFID,18/02/2011,Aid to international organisations,International Finance Division,IBRD HSBC T,400144127,"3,831,000.00"
DFID,DFID,18/02/2011,Aid to civil society organisations / NGOs,Asia Division,INTERNATIONAL ALERT,400144130,"80,572.94"
DFID,DFID,18/02/2011,Research & Development,Policy and Research Directorate,Ipact at the University of Aberdeen,400144145,"27,220.50"
DFID,DFID,18/02/2011,Technical & Advisory services,Policy and Research Directorate,HLSP LIMITED,400144147,"21,370.00"
DFID,DFID,21/02/2011,Aid to civil society organisations / NGOs,West and Southern Africa,African Security Sector Network (ASSN),400144149,"102,663.78"
DFID,DFID,18/02/2011,Technical & Advisory services,East and Central Africa,OXFORD POLICY MANAGEMENT,400144152,"42,919.63"
DFID,DFID,21/02/2011,Technical & Advisory services,Asia Division,CAMBRIDGE EDUCATION LTD,400144156,"90,115.96"
DFID,DFID,18/02/2011,Technical & Advisory services,West and Southern Africa,GRM INTERNATIONAL LTD,400144158,"78,869.43"
DFID,DFID,21/02/2011,Technical & Advisory services,Asia Division,GHK CONSULTING LTD,400144167,"54,305.00"
DFID,DFID,21/02/2011,Technical & Advisory services,Asia Division,ERNST &  YOUNG PRIVATE LTD,400144175,"106,889.00"
DFID,DFID,21/02/2011,Technical & Advisory services,East and Central Africa,COFFEY INTERNATIONAL DEVELOPMENT LTD,400144176,"21,421.48"
DFID,DFID,22/02/2011,Technical & Advisory services,West and Southern Africa,HLSP LIMITED,400144182,"32,477.75"
DFID,DFID,18/02/2011,Technical & Advisory services,International Relations Division,COFFEY INTERNATIONAL DEVELOPMENT LTD,400144187,"180,207.67"
DFID,DFID,22/02/2011,Technical & Advisory services,"Security & Humanitarian, Middle East, Caribbean & Overseas Territories Division",WSP INTERNATIONAL LIMITED,400144189,"63,459.00"
DFID,DFID,18/02/2011,Aid to civil society organisations / NGOs,International Finance Division,SCHOOL OF ORIENTAL & AFRICAN STUDIES,400144191,"48,935.42"
DFID,DFID,21/02/2011,Aid to international organisations,Policy and Research Directorate,The World Bank (EFO),400144286,"250,000.00"
DFID,DFID,21/02/2011,Aid to partner government,East and Central Africa,THE CROWN AGENTS,400144298,"1,500,000.00"
DFID,DFID,21/02/2011,Aid to partner government,East and Central Africa,THE CROWN AGENTS,400144298,"500,000.00"
DFID,DFID,22/02/2011,Aid to international organisations,Asia Division, OECD,400144304,"35,500.00"
DFID,DFID,28/02/2011,Technical & Advisory services,East and Central Africa,ADAM SMITH INTERNATIONAL  LTD,400144316,"101,025.60"
DFID,DFID,21/02/2011,Aid to international organisations,Policy and Research Directorate,IBRD HSBC T,400144320,"1,000,000.00"
DFID,DFID,21/02/2011,Aid to international organisations,Policy and Research Directorate,IBRD HSBC T,400144335,"200,000.00"
DFID,DFID,21/02/2011,Technical & Advisory services,West and Southern Africa,SARAH LADBURY,400144347,"21,885.28"
DFID,DFID,21/02/2011,Technical & Advisory services,West and Southern Africa,HTSPE LTD,400144360,"91,965.60"
DFID,DFID,22/02/2011,Aid to civil society organisations / NGOs,Policy and Research Directorate,World Federation of Science Journalists (GBP),400144362,"118,611.40"
DFID,DFID,22/02/2011,Communications,Asia Division,THE CROWN AGENTS,400144365,"32,895.00"
DFID,DFID,28/02/2011,Technical & Advisory services,Policy and Research Directorate,INSTITUTE FOR INTEGRATED ECONOMIC RESEARCH,400144366,"29,974.50"
DFID,DFID,22/02/2011,Aid to civil society organisations / NGOs,East and Central Africa,The Nile Basin Discourse (NBD),400144379,"370,068.23"
DFID,DFID,21/02/2011,Technical & Advisory services,"Security & Humanitarian, Middle East, Caribbean & Overseas Territories Division",OXFORD POLICY MANAGEMENT,400144382,"30,961.00"
DFID,DFID,21/02/2011,Aid to civil society organisations / NGOs,East and Central Africa,OVERSEAS DEVELOPMENT INSTITUTE (ODI),400144388,"410,580.00"
DFID,DFID,21/02/2011,Research & Development,Policy and Research Directorate,BBSRC,400144390,"50,000.00"
DFID,DFID,21/02/2011,Aid to civil society organisations / NGOs,West and Southern Africa,MERLIN,400144391,"1,990,186.00"
DFID,DFID,21/02/2011,Aid to civil society organisations / NGOs,Communications Division,VSO,400144395,"88,150.00"
DFID,DFID,25/02/2011,Technical & Advisory services,Western Asia and Stabilisation Division,ADAM SMITH INTERNATIONAL  LTD,400144397,"33,468.22"
DFID,DFID,21/02/2011,Aid to partner government,East and Central Africa,IBRD HSBC T,400144402,"2,500,000.00"
DFID,DFID,23/02/2011,Technical & Advisory services,West and Southern Africa,TRIBAL HELM CORPORATION LTD,400144404,"28,714.30"
DFID,DFID,21/02/2011,Aid to international organisations,East and Central Africa,UNICEF,400144406,"600,000.00"
DFID,DFID,21/02/2011,Aid to other bilateral donors,West and Southern Africa,UNICEF,400144408,"33,003.30"
DFID,DFID,23/02/2011,Aid to civil society organisations / NGOs,East and Central Africa,POPULATION  SERVICES INTERNATIONAL,400144417,"1,598,346.00"
DFID,DFID,24/02/2011,Aid to partner government,East and Central Africa,THE CROWN AGENTS,400144429,"797,815.63"
DFID,DFID,22/02/2011,Technical & Advisory services,Policy and Research Directorate,WFP CONTRIBUTIONS UNIT,400144491,"65,789.00"
DFID,DFID,22/02/2011,Aid to international organisations,West and Southern Africa, UNICEF,400144522,"275,000.00"
DFID,DFID,22/02/2011,Aid to civil society organisations / NGOs,Policy and Research Directorate,Triple Line Consulting Limited,400144532,"284,141.87"
DFID,DFID,23/02/2011,"Property Repairs, Maintenance & Alterations",West and Southern Africa,RADIUS Consulting Ghana Ltd,400144536,"25,323.58"
DFID,DFID,22/02/2011,Aid to civil society organisations / NGOs,East and Central Africa,HENNET,400144545,"180,387.67"
DFID,DFID,22/02/2011,Technical & Advisory services,Western Asia and Stabilisation Division,MOTT MACDONALD LTD,400144560,"34,932.75"
DFID,DFID,22/02/2011,Technical & Advisory services,Western Asia and Stabilisation Division,MOTT MACDONALD LTD,400144565,"32,724.69"
DFID,DFID,22/02/2011,Aid to civil society organisations / NGOs,Communications Division,THE CROWN AGENTS,400144567,"85,532.60"
DFID,DFID,28/02/2011,Technical & Advisory services,International Finance Division,NATHAN EME LTD,400144573,"116,381.81"
DFID,DFID,22/02/2011,Technical & Advisory services,International Relations Division,ECOTEC RESEARCH AND CONSULTING LTD,400144592,"104,384.00"
DFID,DFID,22/02/2011,Technical & Advisory services,Western Asia and Stabilisation Division,BRITISH COUNCIL,400144597,"37,086.90"
DFID,DFID,24/02/2011,Technical & Advisory services,Policy and Research Directorate,Perspectives GmbH,400144600,"30,000.00"
DFID,DFID,22/02/2011,Aid to civil society organisations / NGOs,Communications Division,INTERN DEVEL EDUC ASSOC OF SCOTLAND,400144610,"56,662.00"
DFID,DFID,23/02/2011,Technical & Advisory services,Policy and Research Directorate,CAB INTERNATIONAL,400144616,"35,215.22"
DFID,DFID,23/02/2011,Technical & Advisory services,West and Southern Africa,GRM INTERNATIONAL LTD,400144621,"974,719.57"
DFID,DFID,23/02/2011,Technical & Advisory services,Asia Division,OPTIONS CONSULTANCY SERVICES LIMITED,400144624,"52,149.00"
DFID,DFID,23/02/2011,Technical & Advisory services,Western Asia and Stabilisation Division,PRICEWATERHOUSECOOPERS,400144633,"64,022.51"
DFID,DFID,22/02/2011,Aid to international organisations,"Security & Humanitarian, Middle East, Caribbean & Overseas Territories Division",International Monetary Fund (GBP),400144636,"2,000,000.00"
DFID,DFID,24/02/2011,Technical & Advisory services,"Security & Humanitarian, Middle East, Caribbean & Overseas Territories Division",Sea & Shore Construction,400144637,"544,495.40"
DFID,DFID,23/02/2011,Technical & Advisory services,Asia Division,OPTIONS CONSULTANCY SERVICES LIMITED,400144646,"80,361.85"
DFID,DFID,22/02/2011,Technical & Advisory services,Asia Division,OPTIONS CONSULTANCY SERVICES LIMITED,400144648,"47,473.07"
DFID,DFID,22/02/2011,Technical & Advisory services,Asia Division,OPTIONS CONSULTANCY SERVICES LIMITED,400144649,"73,347.00"
DFID,DFID,22/02/2011,Research & Development,Policy and Research Directorate,Practical Action (GBP),400144655,"25,066.51"
DFID,DFID,22/02/2011,Research & Development,Policy and Research Directorate,Practical Action (GBP),400144655,"14,460.00"
DFID,DFID,22/02/2011,Technical & Advisory services,West and Southern Africa,THE CROWN AGENTS,400144659,"1,480.48"
DFID,DFID,22/02/2011,Medical & Health Supplies/Services,West and Southern Africa,THE CROWN AGENTS,400144659,"51,047.41"
DFID,DFID,28/02/2011,Aid to international organisations,East and Central Africa,UNDP (USD) ACCOUNT,400144663,"10,500,000.00"
DFID,DFID,22/02/2011,Technical & Advisory services,Policy and Research Directorate,BRITISH COUNCIL,400144664,"71,177.28"
DFID,DFID,22/02/2011,Office Equipment,West and Southern Africa,Crown Agents Bank,400144665,"27,754.57"
DFID,DFID,22/02/2011,Technical & Advisory services,West and Southern Africa,Crown Agents Bank,400144665,804.88
DFID,DFID,28/02/2011,Technical & Advisory services,Human Resources Division,PRICEWATERHOUSECOOPERS,400144677,"43,220.25"
DFID,DFID,24/02/2011,Aid to civil society organisations / NGOs,East and Central Africa,SOLIDARITES INTERNATIONAL,400144682,"85,882.93"
DFID,DFID,22/02/2011,Aid to partner government,East and Central Africa,IBRD HSBC T,400144684,"200,000.00"
DFID,DFID,22/02/2011,Technical & Advisory services,East and Central Africa,SOCIAL DEVELOPMENT DIRECT LTD,400144689,"25,241.22"
DFID,DFID,23/02/2011,Technical & Advisory services,East and Central Africa,AGULHAS DEVELOPMENT CONSULTANTS LTD,400144692,"26,393.32"
DFID,DFID,23/02/2011,Aid to civil society organisations / NGOs,"Security & Humanitarian, Middle East, Caribbean & Overseas Territories Division",OXFAM,400144769,"297,667.00"
DFID,DFID,23/02/2011,Aid to civil society organisations / NGOs,"Security & Humanitarian, Middle East, Caribbean & Overseas Territories Division",SAFERWORLD,400144772,"234,000.00"
DFID,DFID,23/02/2011,Aid to partner government,Asia Division,THE CROWN AGENTS,400144773,"2,048,128.47"
DFID,DFID,24/02/2011,Technical & Advisory services,East and Central Africa,DELTA PARTNERSHIP SOLUTIONS LTD,400144796,"20,037.50"
DFID,DFID,24/02/2011,Technical & Advisory services,East and Central Africa,DELTA PARTNERSHIP SOLUTIONS LTD,400144796,"5,325.39"
DFID,DFID,23/02/2011,Technical & Advisory services,East and Central Africa,MAXWELL STAMP PLC,400144807,"189,380.98"
DFID,DFID,23/02/2011,Technical & Advisory services,East and Central Africa,MAXWELL STAMP PLC,400144811,"45,000.00"
DFID,DFID,23/02/2011,Technical & Advisory services,West and Southern Africa,PRICEWATERHOUSECOOPERS,400144825,"35,975.00"
DFID,DFID,23/02/2011,Technical & Advisory services,West and Southern Africa,PRICEWATERHOUSECOOPERS,400144825,"219,378.00"
DFID,DFID,23/02/2011,Aid to civil society organisations / NGOs,"Security & Humanitarian, Middle East, Caribbean & Overseas Territories Division",TEARFUND,400144826,"164,505.99"
DFID,DFID,25/02/2011,Aid to partner government,"Security & Humanitarian, Middle East, Caribbean & Overseas Territories Division",TCI Government,400144835,"2,600,000.00"
DFID,DFID,24/02/2011,Aid to international organisations,Asia Division,UNOPS,400144844,"2,500,000.00"
DFID,DFID,23/02/2011,Technical & Advisory services,Communications Division,BRITISH COUNCIL,400144854,"18,837.96"
DFID,DFID,23/02/2011,Technical & Advisory services,Communications Division,BRITISH COUNCIL,400144854,"104,648.60"
DFID,DFID,24/02/2011,Aid to international organisations,Policy and Research Directorate,Institute for OneWorld Health,400144856,"350,000.00"
DFID,DFID,23/02/2011,Technical & Advisory services,East and Central Africa,COFFEY INTERNATIONAL DEVELOPMENT LTD,400144865,"41,239.93"
DFID,DFID,23/02/2011,Technical & Advisory services,East and Central Africa,COFFEY INTERNATIONAL DEVELOPMENT LTD,400144865,"-12,461.61"
DFID,DFID,24/02/2011,Aid to civil society organisations / NGOs,East and Central Africa,Action Against Hunger - USA,400144866,"75,919.00"
DFID,DFID,23/02/2011,Medical & Health Supplies/Services,West and Southern Africa,THE CROWN AGENTS,400144880,"124,902.71"
DFID,DFID,23/02/2011,Research & Development,Policy and Research Directorate,ECONOMIC & SOCIAL REASEARCH COUNCIL,400144900,"20,000.00"
DFID,DFID,23/02/2011,Research & Development,Policy and Research Directorate,ECONOMIC & SOCIAL REASEARCH COUNCIL,400144900,"480,000.00"
DFID,DFID,24/02/2011,Aid to civil society organisations / NGOs,Policy and Research Directorate,WHITE RIBBON ALLIANCE,400144901,"245,777.97"
DFID,DFID,23/02/2011,Aid to civil society organisations / NGOs,West and Southern Africa,CHRISTIAN AID,400144905,"271,738.32"
DFID,DFID,23/02/2011,Technical & Advisory services,Policy and Research Directorate,Triple Line Consulting Limited,400144916,"469,681.18"
DFID,DFID,24/02/2011,Technical & Advisory services,East and Central Africa,ATOS CONSULTING LIMITED,400144924,"84,712.77"
DFID,DFID,23/02/2011,Technical & Advisory services,Policy and Research Directorate,NATHAN EME LTD,400144933,"32,720.91"
DFID,DFID,23/02/2011,Aid to international organisations,East and Central Africa,IBRD HSBC T,400144953,"7,000,000.00"
DFID,DFID,24/02/2011,Technical & Advisory services,Asia Division,MAXWELL STAMP PLC,400144957,"200,000.00"
DFID,DFID,24/02/2011,Aid to civil society organisations / NGOs,Asia Division,MAXWELL STAMP PLC,400144957,"587,112.75"
DFID,DFID,23/02/2011,Technical & Advisory services,West and Southern Africa,HLSP LIMITED,400144962,"512,139.77"
DFID,DFID,23/02/2011,Technical & Advisory services,West and Southern Africa,HLSP LIMITED,400144965,"814,299.17"
DFID,DFID,23/02/2011,Technical & Advisory services,West and Southern Africa,HLSP LIMITED,400144967,"189,342.35"
DFID,DFID,28/02/2011,Technical & Advisory services,West and Southern Africa,THE CROWN AGENTS,400144971,"69,963.83"
DFID,DFID,28/02/2011,Aid to civil society organisations / NGOs,Asia Division,BRAC,400144984,"5,500,000.00"
DFID,DFID,23/02/2011,Aid to other bilateral donors,Asia Division,IBRD HSBC T,400144992,"200,000.00"
DFID,DFID,24/02/2011,Technical & Advisory services,West and Southern Africa,Mulli Brothers,400145062,"41,956.53"
DFID,DFID,24/02/2011,Aid to international organisations,Asia Division,UNDP CONTRIBUTIONS GBP,400145071,"2,500,000.00"
DFID,DFID,24/02/2011,Aid to international organisations,Asia Division,UNDP CONTRIBUTIONS GBP,400145071,"2,000,000.00"
DFID,DFID,24/02/2011,Technical & Advisory services,West and Southern Africa,HLSP LIMITED,400145081,"238,000.00"
DFID,DFID,24/02/2011,Technical & Advisory services,"Security & Humanitarian, Middle East, Caribbean & Overseas Territories Division",ADAM SMITH INTERNATIONAL  LTD,400145090,"135,330.38"
DFID,DFID,24/02/2011,Technical & Advisory services,East and Central Africa,ADAM SMITH INTERNATIONAL  LTD,400145094,"59,151.57"
DFID,DFID,24/02/2011,Accommodation costs,West and Southern Africa,Photo Industries Ltd,400145095,"47,703.74"
DFID,DFID,24/02/2011,Accommodation costs,West and Southern Africa,Photo Industries Ltd,400145095,"39,030.33"
DFID,DFID,24/02/2011,Emergency / Humanitarian Assistance,Western Asia and Stabilisation Division,CONCERN WORLDWIDE,400145099,"100,000.00"
DFID,DFID,24/02/2011,Emergency / Humanitarian Assistance,Western Asia and Stabilisation Division,CONCERN WORLDWIDE,400145099,"1,750,000.00"
DFID,DFID,24/02/2011,Aid to civil society organisations / NGOs,Western Asia and Stabilisation Division,OXFAM,400145105,"883,899.00"
DFID,DFID,24/02/2011,Aid to civil society organisations / NGOs,"Security & Humanitarian, Middle East, Caribbean & Overseas Territories Division",OXFAM,400145107,"86,680.00"
DFID,DFID,24/02/2011,Aid to international organisations,Policy and Research Directorate,MEDICAL RESEARCH COUNCIL,400145109,"2,500,000.00"
DFID,DFID,24/02/2011,"Property Repairs, Maintenance & Alterations",Human Resources Division,MITIE Technical Facilities Management Ltd,400145115,"5,477.16"
DFID,DFID,24/02/2011,Technical & Advisory services,Human Resources Division,MITIE Technical Facilities Management Ltd,400145115,439.46
DFID,DFID,24/02/2011,Accommodation costs,Human Resources Division,MITIE Technical Facilities Management Ltd,400145115,"9,184.06"
DFID,DFID,24/02/2011,"Property Repairs, Maintenance & Alterations",Human Resources Division,MITIE Technical Facilities Management Ltd,400145115,"11,242.00"
DFID,DFID,24/02/2011,"Property Repairs, Maintenance & Alterations",Human Resources Division,MITIE Technical Facilities Management Ltd,400145115,"7,154.52"
DFID,DFID,24/02/2011,Technical & Advisory services,Human Resources Division,MITIE Technical Facilities Management Ltd,400145115,748.27
DFID,DFID,24/02/2011,Accommodation costs,Human Resources Division,MITIE Technical Facilities Management Ltd,400145115,"15,741.77"
DFID,DFID,24/02/2011,"Property Repairs, Maintenance & Alterations",Human Resources Division,MITIE Technical Facilities Management Ltd,400145115,"20,186.22"
DFID,DFID,24/02/2011,Aid to civil society organisations / NGOs,"Security & Humanitarian, Middle East, Caribbean & Overseas Territories Division",PLAN INTERNATIONAL UK,400145119,"167,659.00"
DFID,DFID,24/02/2011,Aid to civil society organisations / NGOs,Policy and Research Directorate,OVERSEAS DEVELOPMENT INSTITUTE,400145133,"203,262.02"
DFID,DFID,25/02/2011,Aid to civil society organisations / NGOs,West and Southern Africa,INTERNATIONAL RESCUE COMMITTEE UK,400145136,"159,504.00"
DFID,DFID,25/02/2011,Aid to civil society organisations / NGOs,West and Southern Africa,INTERNATIONAL RESCUE COMMITTEE UK,400145136,"1,399,064.96"
DFID,DFID,25/02/2011,Aid to civil society organisations / NGOs,West and Southern Africa,INTERNATIONAL RESCUE COMMITTEE UK,400145136,"1,698,715.04"
DFID,DFID,24/02/2011,Aid to civil society organisations / NGOs,West and Southern Africa,Community Media Trust,400145140,"562,816.93"
DFID,DFID,24/02/2011,Technical & Advisory services,West and Southern Africa,THE CROWN AGENTS,400145141,"97,161.40"
DFID,DFID,28/02/2011,Aid to partner government,West and Southern Africa,THE CROWN AGENTS,400145142,"228,286.23"
DFID,DFID,25/02/2011,Technical & Advisory services,Policy and Research Directorate,AFRICAN CENTRE FOR TECHNOLOGY STUDIES,400145143,"190,890.00"
DFID,DFID,24/02/2011,Aid to civil society organisations / NGOs,Policy and Research Directorate,Triple Line Consulting Limited,400145147,"324,239.76"
DFID,DFID,24/02/2011,Aid to civil society organisations / NGOs,Policy and Research Directorate,Triple Line Consulting Limited,400145151,"195,454.89"
DFID,DFID,25/02/2011,Aid to international organisations,International Relations Division,EUROPEAN INVESTMENT BANK,400145155,"111,181.92"
DFID,DFID,25/02/2011,Aid to civil society organisations / NGOs,East and Central Africa,Family Care International,400145160,"37,806.00"
DFID,DFID,24/02/2011,Technical & Advisory services,Asia Division,MAXWELL STAMP PLC,400145162,"145,408.90"
DFID,DFID,28/02/2011,Technical & Advisory services,Asia Division,INFRASTRUCTURE PROFESSIONALS ENTERPRISE,400145168,"67,639.27"
DFID,DFID,24/02/2011,Technical & Advisory services,West and Southern Africa,MALARIA CONSORTIUM,400145170,"172,350.50"
DFID,DFID,24/02/2011,Technical & Advisory services,West and Southern Africa,MALARIA CONSORTIUM,400145170,"-86,175.25"
DFID,DFID,24/02/2011,Aid to civil society organisations / NGOs,Policy and Research Directorate,LONDON SCHOOL OF ECONOMICS AND POLITICAL SCIENCE,400145171,"32,680.01"
DFID,DFID,24/02/2011,Aid to international organisations,"Security & Humanitarian, Middle East, Caribbean & Overseas Territories Division",IBRD HSBC T,400145172,"73,500.00"
DFID,DFID,24/02/2011,Aid to international organisations,"Security & Humanitarian, Middle East, Caribbean & Overseas Territories Division",IBRD (HSBC)  C/O THE WORLD BANK,400145173,"2,460,000.00"
DFID,DFID,25/02/2011,Technical & Advisory services,Policy and Research Directorate,IMPERIAL COLLEGE LONDON,400145176,"64,738.59"
DFID,DFID,24/02/2011,Technical & Advisory services,East and Central Africa,ADAM SMITH INTERNATIONAL  LTD,400145177,"566,944.00"
DFID,DFID,24/02/2011,Technical & Advisory services,East and Central Africa,ADAM SMITH INTERNATIONAL  LTD,400145177,"-211,722.00"
DFID,DFID,24/02/2011,Technical & Advisory services,East and Central Africa,ADAM SMITH INTERNATIONAL  LTD,400145177,"183,411.67"
DFID,DFID,24/02/2011,Technical & Advisory services,East and Central Africa,ADAM SMITH INTERNATIONAL  LTD,400145177,"-203,173.00"
DFID,DFID,25/02/2011,Emergency / Humanitarian Assistance,West and Southern Africa,World Food  Programme,400145179,"490,183.00"
DFID,DFID,25/02/2011,Technical & Advisory services,East and Central Africa,ADAM SMITH INTERNATIONAL  LTD,400145181,"73,863.07"
DFID,DFID,24/02/2011,Technical & Advisory services,West and Southern Africa,THE CROWN AGENTS,400145183,"34,812.19"
DFID,DFID,24/02/2011,Aid to civil society organisations / NGOs,Asia Division,SAVE THE CHILDREN,400145190,"160,744.03"
DFID,DFID,25/02/2011,Aid to international organisations,Policy and Research Directorate,ESAAMLG,400145195,"50,000.00"
DFID,DFID,25/02/2011,Technical & Advisory services,Western Asia and Stabilisation Division,MOTT MACDONALD LTD,400145204,"42,380.13"
DFID,DFID,24/02/2011,Aid to civil society organisations / NGOs,Communications Division,THE CROWN AGENTS,400145205,"30,008.77"
DFID,DFID,24/02/2011,Aid to civil society organisations / NGOs,Communications Division,THE CROWN AGENTS,400145207,"119,164.46"
DFID,DFID,25/02/2011,Technical & Advisory services,"Security & Humanitarian, Middle East, Caribbean & Overseas Territories Division",Crown Agents Bank,400145291,"287,859.00"
DFID,DFID,25/02/2011,Technical & Advisory services,"Security & Humanitarian, Middle East, Caribbean & Overseas Territories Division",Crown Agents Bank,400145294,"100,000.00"
DFID,DFID,28/02/2011,Technical & Advisory services,East and Central Africa,BMB  MOTT  MACDONALD,400145338,"2,470,582.00"
DFID,DFID,28/02/2011,Technical & Advisory services,East and Central Africa,BMB  MOTT  MACDONALD,400145339,"120,430.96"
DFID,DFID,25/02/2011,Aid to international organisations,East and Central Africa,UN OCHA,400145343,"1,000,000.00"
DFID,DFID,28/02/2011,Aid to civil society organisations / NGOs,East and Central Africa,UNIVERSITY OF OXFORD,400145345,"28,715.12"
DFID,DFID,25/02/2011,Technical & Advisory services,West and Southern Africa,COFFEY INTERNATIONAL DEVELOPMENT LTD,400145367,"75,894.71"
DFID,DFID,25/02/2011,Aid to international organisations,East and Central Africa,IBRD (HSBC)  C/O THE WORLD BANK,400145370,"5,000,000.00"
DFID,DFID,28/02/2011,Technical & Advisory services,International Relations Division,OXFORD POLICY MANAGEMENT,400145373,"106,031.88"
DFID,DFID,25/02/2011,Technical & Advisory services,Asia Division,UNIVERSITY OF WOLVERHAMPTON,400145376,"134,726.99"
DFID,DFID,28/02/2011,Direct Programme training / facilitation,Western Asia and Stabilisation Division,COFFEY INTERNATIONAL DEVELOPMENT LTD,400145377,"25,000.00"
DFID,DFID,25/02/2011,Aid to partner government,Asia Division,THE CROWN AGENTS,400145380,"2,986,031.21"
DFID,DFID,28/02/2011,Aid to civil society organisations / NGOs,East and Central Africa, THE RESEARCH FOUNDATION,400145381,"111,638.02"
DFID,DFID,28/02/2011,Technical & Advisory services,International Relations Division,PKF (UK) LLP,400145383,"112,379.48"
DFID,DFID,25/02/2011,Technical & Advisory services,East and Central Africa,MAXWELL STAMP PLC,400145385,"26,000.00"
DFID,DFID,25/02/2011,Aid to international organisations,East and Central Africa,UN OCHA,400145393,"150,000.00"
DFID,DFID,25/02/2011,Communications,Business Solutions Division Level,ICM Business Continuity Services Ltd,400145394,"207,564.00"
DFID,DFID,28/02/2011,Aid to civil society organisations / NGOs,East and Central Africa,MEDAIR,400145398,"112,630.00"
DFID,DFID,25/02/2011,Aid to other bilateral donors,West and Southern Africa, UNICEF,400145409,"4,950,000.00"
DFID,DFID,28/02/2011,Accommodation costs,West and Southern Africa,Shadrack Arhin,400145454,"27,815.18"
DFID,DFID,28/02/2011,Aid to international organisations,East and Central Africa,UNIFEM ( UNDP ),400145475,"58,779.00"
DFID,DFID,28/02/2011,Aid to international organisations,Asia Division,IBRD HSBC T,400145485,"1,750,000.00"
DFID,DFID,28/02/2011,Aid to international organisations,Asia Division,IBRD HSBC T,400145488,"500,000.00"
DFID,DFID,28/02/2011,Aid to civil society organisations / NGOs,East and Central Africa,Development Media International,400145491,"75,653.00"
DFID,DFID,28/02/2011,Aid to civil society organisations / NGOs,East and Central Africa,MERLIN,400145501,"164,478.00"
DFID,DFID,28/02/2011,Aid to international organisations,Policy and Research Directorate,International Partnership for Microbicides,400145503,"500,000.00"
DFID,DFID,28/02/2011,Technical & Advisory services,Asia Division,BRITISH COUNCIL,400145529,"897,790.50"
DFID,DFID,28/02/2011,Technical & Advisory services,Asia Division,BRITISH COUNCIL,400145529,"-507,895.26"
DFID,DFID,28/02/2011,Technical & Advisory services,Asia Division,BRITISH COUNCIL,400145529,"62,717.62"
DFID,DFID,28/02/2011,Technical & Advisory services,West and Southern Africa,ADAM SMITH INTERNATIONAL  LTD,400145532,"206,898.61"
DFID,DFID,28/02/2011,Technical & Advisory services,West and Southern Africa,ADAM SMITH INTERNATIONAL  LTD,400145566,"243,014.32"
DFID,DFID,28/02/2011,Aid to other bilateral donors,Asia Division,UNDP CONTRIBUTIONS GBP,400145567,"463,698.00"
DFID,DFID,28/02/2011,Hardware,Business Solutions Division Level,ASPEN  SOLUTIONS LTD,400145569,"34,112.98"
DFID,DFID,28/02/2011,Technical & Advisory services,Policy and Research Directorate,PRICEWATERHOUSECOOPERS,400145596,"342,887.63"
DFID,DFID,28/02/2011,Technical & Advisory services,Asia Division,GRM INTERNATIONAL LTD,400145599,"378,018.99"
DFID,DFID,11/02/2011,FCO Post Account,"Security & Humanitarian, Middle East, Caribbean & Overseas Territories Division",FOREIGN AND COMMONWEALTH OFFICE,400142539,"31,675.40"
DFID,DFID,11/02/2011,FCO Post Account,"Security & Humanitarian, Middle East, Caribbean & Overseas Territories Division",FOREIGN AND COMMONWEALTH OFFICE,400142539,36.62
DFID,DFID,11/02/2011,FCO Post Account,"Security & Humanitarian, Middle East, Caribbean & Overseas Territories Division",FOREIGN AND COMMONWEALTH OFFICE,400142539,"1,144.90"
DFID,DFID,11/02/2011,FCO Post Account,International Relations Division,FOREIGN AND COMMONWEALTH OFFICE,400142539,"18,189.60"
DFID,DFID,11/02/2011,FCO Post Account,Business Solutions Division Level,FOREIGN AND COMMONWEALTH OFFICE,400142539,556.48
DFID,DFID,11/02/2011,FCO Post Account,Top Management Group,FOREIGN AND COMMONWEALTH OFFICE,400142539,120.51
DFID,DFID,17/02/2011,FCO Post Account,International Relations Division,FOREIGN AND COMMONWEALTH OFFICE,400143264,"18,523.45"
DFID,DFID,17/02/2011,FCO Post Account,International Relations Division,FOREIGN AND COMMONWEALTH OFFICE,400143264,"3,778.87"
DFID,DFID,17/02/2011,FCO Post Account,International Relations Division,FOREIGN AND COMMONWEALTH OFFICE,400143264,82.64
DFID,DFID,17/02/2011,FCO Post Account,Policy and Research Directorate,FOREIGN AND COMMONWEALTH OFFICE,400143264,375.39
DFID,DFID,17/02/2011,FCO Post Account,Policy and Research Directorate,FOREIGN AND COMMONWEALTH OFFICE,400143264,"1,539.96"
DFID,DFID,17/02/2011,FCO Post Account,Policy and Research Directorate,FOREIGN AND COMMONWEALTH OFFICE,400143264,16.99
DFID,DFID,17/02/2011,FCO Post Account,Asia Division,FOREIGN AND COMMONWEALTH OFFICE,400143264,"12,392.15"
DFID,DFID,17/02/2011,FCO Post Account,Business Solutions Division Level,FOREIGN AND COMMONWEALTH OFFICE,400143264,902.87
DFID,DFID,17/02/2011,FCO Post Account,International Relations Division,FOREIGN AND COMMONWEALTH OFFICE,400143264,"5,804.08"
DFID,DFID,15/02/2011,FCO Post Account,West and Southern Africa,FOREIGN AND COMMONWEALTH OFFICE,400143423,"2,839.65"
DFID,DFID,15/02/2011,FCO Post Account,East and Central Africa,FOREIGN AND COMMONWEALTH OFFICE,400143423,"1,047.49"
DFID,DFID,15/02/2011,FCO Post Account,East and Central Africa,FOREIGN AND COMMONWEALTH OFFICE,400143423,63.99
DFID,DFID,15/02/2011,FCO Post Account,Human Resources Division,FOREIGN AND COMMONWEALTH OFFICE,400143423,"1,721.81"
DFID,DFID,15/02/2011,FCO Post Account,"Security & Humanitarian, Middle East, Caribbean & Overseas Territories Division",FOREIGN AND COMMONWEALTH OFFICE,400143423,"2,528.12"
DFID,DFID,15/02/2011,FCO Post Account,Policy and Research Directorate,FOREIGN AND COMMONWEALTH OFFICE,400143423,16.05
DFID,DFID,15/02/2011,FCO Post Account,Asia Division,FOREIGN AND COMMONWEALTH OFFICE,400143423,991.14
DFID,DFID,15/02/2011,FCO Post Account,Western Asia and Stabilisation Division,FOREIGN AND COMMONWEALTH OFFICE,400143423,47.19
DFID,DFID,15/02/2011,FCO Post Account,"Security & Humanitarian, Middle East, Caribbean & Overseas Territories Division",FOREIGN AND COMMONWEALTH OFFICE,400143423,"5,346.00"
DFID,DFID,15/02/2011,FCO Post Account,Asia Division,FOREIGN AND COMMONWEALTH OFFICE,400143423,"15,583.70"
DFID,DFID,15/02/2011,FCO Post Account,West and Southern Africa,FOREIGN AND COMMONWEALTH OFFICE,400143423,"37,075.33"
DFID,DFID,15/02/2011,FCO Post Account,East and Central Africa,FOREIGN AND COMMONWEALTH OFFICE,400143423,"81,503.41"
DFID,DFID,15/02/2011,FCO Post Account,Western Asia and Stabilisation Division,FOREIGN AND COMMONWEALTH OFFICE,400143423,717.97
DFID,DFID,15/02/2011,FCO Post Account,Asia Division,FOREIGN AND COMMONWEALTH OFFICE,400143423,29.76
DFID,DFID,15/02/2011,FCO Post Account,Business Solutions Division Level,FOREIGN AND COMMONWEALTH OFFICE,400143442,"3,266.66"
DFID,DFID,15/02/2011,FCO Post Account,"Security & Humanitarian, Middle East, Caribbean & Overseas Territories Division",FOREIGN AND COMMONWEALTH OFFICE,400143442,"63,529.63"
DFID,DFID,15/02/2011,FCO Post Account,International Relations Division,FOREIGN AND COMMONWEALTH OFFICE,400143442,"10,318.42"
DFID,DFID,15/02/2011,FCO Post Account,Policy and Research Directorate,FOREIGN AND COMMONWEALTH OFFICE,400143442,115.44
DFID,DFID,15/02/2011,FCO Post Account,"Security & Humanitarian, Middle East, Caribbean & Overseas Territories Division",FOREIGN AND COMMONWEALTH OFFICE,400143442,213.83
DFID,DFID,15/02/2011,FCO Post Account,Asia Division,FOREIGN AND COMMONWEALTH OFFICE,400143503,239
DFID,DFID,15/02/2011,FCO Post Account,Western Asia and Stabilisation Division,FOREIGN AND COMMONWEALTH OFFICE,400143503,2.22
DFID,DFID,15/02/2011,FCO Post Account,East and Central Africa,FOREIGN AND COMMONWEALTH OFFICE,400143503,58.81
DFID,DFID,15/02/2011,FCO Post Account,West and Southern Africa,FOREIGN AND COMMONWEALTH OFFICE,400143503,53.42
DFID,DFID,15/02/2011,FCO Post Account,Business Solutions Division Level,FOREIGN AND COMMONWEALTH OFFICE,400143503,27.72
DFID,DFID,15/02/2011,FCO Post Account,East and Central Africa,FOREIGN AND COMMONWEALTH OFFICE,400143503,"6,843.55"
DFID,DFID,15/02/2011,FCO Post Account,"Security & Humanitarian, Middle East, Caribbean & Overseas Territories Division",FOREIGN AND COMMONWEALTH OFFICE,400143503,"4,371.93"
DFID,DFID,15/02/2011,FCO Post Account,Asia Division,FOREIGN AND COMMONWEALTH OFFICE,400143503,"3,858.22"
DFID,DFID,15/02/2011,FCO Post Account,Asia Division,FOREIGN AND COMMONWEALTH OFFICE,400143503,518.26
DFID,DFID,15/02/2011,FCO Post Account,West and Southern Africa,FOREIGN AND COMMONWEALTH OFFICE,400143503,868.03
DFID,DFID,15/02/2011,FCO Post Account,West and Southern Africa,FOREIGN AND COMMONWEALTH OFFICE,400143503,"3,270.89"
DFID,DFID,15/02/2011,FCO Post Account,Human Resources Division,FOREIGN AND COMMONWEALTH OFFICE,400143503,27.72
DFID,DFID,15/02/2011,FCO Post Account,East and Central Africa,FOREIGN AND COMMONWEALTH OFFICE,400143503,"14,403.13"
DFID,DFID,15/02/2011,FCO Post Account,West and Southern Africa,FOREIGN AND COMMONWEALTH OFFICE,400143503,25.63
DFID,DFID,15/02/2011,FCO Post Account,Western Asia and Stabilisation Division,FOREIGN AND COMMONWEALTH OFFICE,400143503,356.71
DFID,DFID,15/02/2011,FCO Post Account,Asia Division,FOREIGN AND COMMONWEALTH OFFICE,400143503,"1,066.06"
DFID,DFID,15/02/2011,FCO Post Account,Western Asia and Stabilisation Division,FOREIGN AND COMMONWEALTH OFFICE,400143503,294.16
DFID,DFID,17/02/2011,FCO Post Account,Asia Division,FOREIGN AND COMMONWEALTH OFFICE,400143538,"45,307.05"
DFID,DFID,17/02/2011,FCO Post Account,International Relations Division,FOREIGN AND COMMONWEALTH OFFICE,400143538,"1,883.08"
DFID,DFID,17/02/2011,FCO Post Account,International Relations Division,FOREIGN AND COMMONWEALTH OFFICE,400143538,421.1
DFID,DFID,17/02/2011,FCO Post Account,Asia Division,FOREIGN AND COMMONWEALTH OFFICE,400143538,"13,036.88"
DFID,DFID,17/02/2011,FCO Post Account,Asia Division,FOREIGN AND COMMONWEALTH OFFICE,400143538,"1,387.83"
DFID,DFID,17/02/2011,FCO Post Account,Business Solutions Division Level,FOREIGN AND COMMONWEALTH OFFICE,400143538,"1,296.74"
DFID,DFID,17/02/2011,FCO Post Account,International Relations Division,FOREIGN AND COMMONWEALTH OFFICE,400143538,"1,576.70"
DFID,DFID,17/02/2011,FCO Post Account,International Relations Division,FOREIGN AND COMMONWEALTH OFFICE,400143538,873.47
DFID,DFID,25/02/2011,Accomodation costs,Human Resources Division,Natwest Government Procurement Card,100036,"3,433.28"
DFID,DFID,25/02/2011,Accomodation costs,Western Asia and Stabilisation Division,Natwest Government Procurement Card,100036,"3,250.00"
DFID,DFID,01/02/2011,Books & Publications,Business Solutions Division Level,Natwest Government Procurement Card,100035,100.5
DFID,DFID,25/02/2011,Books & Publications,Business Solutions Division Level,Natwest Government Procurement Card,100036,117.8
DFID,DFID,25/02/2011,Books & Publications,Evaluation Department,Natwest Government Procurement Card,100036,41.8
DFID,DFID,25/02/2011,Books & Publications,Finance and Corporate Performance Division,Natwest Government Procurement Card,100036,23.2
DFID,DFID,01/02/2011,Communications,Business Solutions Division Level,Natwest Government Procurement Card,100035,132.24
DFID,DFID,25/02/2011,Communications,Business Solutions Division Level,Natwest Government Procurement Card,100036,18.5
DFID,DFID,25/02/2011,Communications,Human Resources Division,Natwest Government Procurement Card,100036,266.63
DFID,DFID,01/02/2011,Communications,Policy and Research Directorate,Natwest Government Procurement Card,100035,"4,938.06"
DFID,DFID,25/02/2011,Communications,Policy and Research Directorate,Natwest Government Procurement Card,100036,23.94
DFID,DFID,01/02/2011,Communications,"Security & Humanitarian, Middle East, Caribbean & Overseas Territories Division",Natwest Government Procurement Card,100035,"-2,584.86"
DFID,DFID,01/02/2011,Consumables,Asia Division,Natwest Government Procurement Card,100035,125.94
DFID,DFID,01/02/2011,Consumables,Business Solutions Division Level,Natwest Government Procurement Card,100035,"19,551.15"
DFID,DFID,25/02/2011,Consumables,Business Solutions Division Level,Natwest Government Procurement Card,100036,"2,127.68"
DFID,DFID,25/02/2011,Consumables,East and Central Africa,Natwest Government Procurement Card,100036,"11,513.82"
DFID,DFID,25/02/2011,Consumables,Policy and Research Directorate,Natwest Government Procurement Card,100036,25
DFID,DFID,01/02/2011,Contract & Agency Staff,Communications Division,Natwest Government Procurement Card,100035,"2,618.65"
DFID,DFID,01/02/2011,Contract & Agency Staff,International Finance Division,Natwest Government Procurement Card,100035,"1,855.55"
DFID,DFID,01/02/2011,Contract & Agency Staff,International Relations Division,Natwest Government Procurement Card,100035,"1,775.58"
DFID,DFID,01/02/2011,Contract & Agency Staff,Policy and Research Directorate,Natwest Government Procurement Card,100035,"12,243.81"
DFID,DFID,01/02/2011,Contract & Agency Staff,"Security & Humanitarian, Middle East, Caribbean & Overseas Territories Division",Natwest Government Procurement Card,100035,"10,040.50"
DFID,DFID,01/02/2011,Contract & Agency Staff,Western Asia and Stabilisation Division,Natwest Government Procurement Card,100035,"10,789.96"
DFID,DFID,25/02/2011,Entertainment & Hospitality,"Security & Humanitarian, Middle East, Caribbean & Overseas Territories Division",Natwest Government Procurement Card,100036,70
DFID,DFID,01/02/2011,Entertainment & Hospitality,Top Management Group,Natwest Government Procurement Card,100035,607.15
DFID,DFID,01/02/2011,Entertainment & Hospitality,West and Southern Africa,Natwest Government Procurement Card,100035,11.74
DFID,DFID,01/02/2011,Furniture & Fittings,Human Resources Division,Natwest Government Procurement Card,100035,85.72
DFID,DFID,01/02/2011,Hardware,Business Solutions Division Level,Natwest Government Procurement Card,100035,"2,302.71"
DFID,DFID,25/02/2011,Hardware,Business Solutions Division Level,Natwest Government Procurement Card,100036,"6,776.99"
DFID,DFID,25/02/2011,Hardware,Policy and Research Directorate,Natwest Government Procurement Card,100036,60.5
DFID,DFID,25/02/2011,Hardware,West and Southern Africa,Natwest Government Procurement Card,100036,"7,994.27"
DFID,DFID,25/02/2011,Office Equipment,Finance and Corporate Performance Division,Natwest Government Procurement Card,100036,27.93
DFID,DFID,01/02/2011,Office Equipment,Human Resources Division,Natwest Government Procurement Card,100035,"2,085.22"
DFID,DFID,25/02/2011,Office Equipment,Human Resources Division,Natwest Government Procurement Card,100036,589.41
DFID,DFID,01/02/2011,Office Equipment,Western Asia and Stabilisation Division,Natwest Government Procurement Card,100035,693.06
DFID,DFID,01/02/2011,"Printing, Stationary & Postage",Business Solutions Division Level,Natwest Government Procurement Card,100035,18.8
DFID,DFID,01/02/2011,"Printing, Stationary & Postage",Human Resources Division,Natwest Government Procurement Card,100035,"1,548.08"
DFID,DFID,25/02/2011,"Printing, Stationary & Postage",Human Resources Division,Natwest Government Procurement Card,100036,"3,490.17"
DFID,DFID,01/02/2011,"Printing, Stationary & Postage","Security & Humanitarian, Middle East, Caribbean & Overseas Territories Division",Natwest Government Procurement Card,100035,98.89
DFID,DFID,25/02/2011,"Printing, Stationary & Postage",West and Southern Africa,Natwest Government Procurement Card,100036,152.79
DFID,DFID,01/02/2011,"Printing, Stationary & Postage",Western Asia and Stabilisation Division,Natwest Government Procurement Card,100035,"1,431.37"
DFID,DFID,25/02/2011,"Printing, Stationary & Postage",Western Asia and Stabilisation Division,Natwest Government Procurement Card,100036,"6,893.77"
DFID,DFID,01/02/2011,Professional member subscriptions,Finance and Corporate Performance Division,Natwest Government Procurement Card,100035,193
DFID,DFID,25/02/2011,Professional member subscriptions,Finance and Corporate Performance Division,Natwest Government Procurement Card,100036,374
DFID,DFID,01/02/2011,Professional member subscriptions,Human Resources Division,Natwest Government Procurement Card,100035,"2,931.63"
DFID,DFID,01/02/2011,Professional member subscriptions,Policy and Research Directorate,Natwest Government Procurement Card,100035,348
DFID,DFID,01/02/2011,Software,Asia Division,Natwest Government Procurement Card,100035,749.07
DFID,DFID,01/02/2011,Software,Business Solutions Division Level,Natwest Government Procurement Card,100035,-273.44
DFID,DFID,25/02/2011,Software,Business Solutions Division Level,Natwest Government Procurement Card,100036,554.07
DFID,DFID,01/02/2011,Staff Business Travel and Subsistence,Asia Division,Natwest Government Procurement Card,100035,160.7
DFID,DFID,01/02/2011,Staff Business Travel and Subsistence,Business Solutions Division Level,Natwest Government Procurement Card,100035,125
DFID,DFID,25/02/2011,Staff Business Travel and Subsistence,Business Solutions Division Level,Natwest Government Procurement Card,100036,604.71
DFID,DFID,01/02/2011,Staff Business Travel and Subsistence,East and Central Africa,Natwest Government Procurement Card,100035,65
DFID,DFID,01/02/2011,Staff Business Travel and Subsistence,Finance and Corporate Performance Division,Natwest Government Procurement Card,100035,161.95
DFID,DFID,25/02/2011,Staff Business Travel and Subsistence,Finance and Corporate Performance Division,Natwest Government Procurement Card,100036,354.04
DFID,DFID,01/02/2011,Staff Business Travel and Subsistence,Human Resources Division,Natwest Government Procurement Card,100035,-35.78
DFID,DFID,25/02/2011,Staff Business Travel and Subsistence,Human Resources Division,Natwest Government Procurement Card,100036,271.15
DFID,DFID,01/02/2011,Staff Business Travel and Subsistence,International Finance Division,Natwest Government Procurement Card,100035,"1,245.18"
DFID,DFID,25/02/2011,Staff Business Travel and Subsistence,International Finance Division,Natwest Government Procurement Card,100036,875.7
DFID,DFID,01/02/2011,Staff Business Travel and Subsistence,International Relations Division,Natwest Government Procurement Card,100035,"1,785.55"
DFID,DFID,01/02/2011,Staff Business Travel and Subsistence,Policy and Research Directorate,Natwest Government Procurement Card,100035,"1,334.38"
DFID,DFID,25/02/2011,Staff Business Travel and Subsistence,Policy and Research Directorate,Natwest Government Procurement Card,100036,"1,036.66"
DFID,DFID,01/02/2011,Staff Business Travel and Subsistence,"Security & Humanitarian, Middle East, Caribbean & Overseas Territories Division",Natwest Government Procurement Card,100035,688.99
DFID,DFID,25/02/2011,Staff Business Travel and Subsistence,"Security & Humanitarian, Middle East, Caribbean & Overseas Territories Division",Natwest Government Procurement Card,100036,97.9
DFID,DFID,25/02/2011,Staff Business Travel and Subsistence,Top Management Group,Natwest Government Procurement Card,100036,14.5
DFID,DFID,01/02/2011,Staff Business Travel and Subsistence,West and Southern Africa,Natwest Government Procurement Card,100035,"4,202.72"
DFID,DFID,25/02/2011,Staff Business Travel and Subsistence,West and Southern Africa,Natwest Government Procurement Card,100036,"4,422.15"
DFID,DFID,01/02/2011,Staff Business Travel and Subsistence,Western Asia and Stabilisation Division,Natwest Government Procurement Card,100035,"2,183.78"
DFID,DFID,25/02/2011,Staff Business Travel and Subsistence,Western Asia and Stabilisation Division,Natwest Government Procurement Card,100036,820.73
DFID,DFID,01/02/2011,Staff training & Conferences,Asia Division,Natwest Government Procurement Card,100035,40
DFID,DFID,25/02/2011,Staff training & Conferences,Asia Division,Natwest Government Procurement Card,100036,67
DFID,DFID,25/02/2011,Staff training & Conferences,Business Solutions Division Level,Natwest Government Procurement Card,100036,37.18
DFID,DFID,01/02/2011,Staff training & Conferences,Finance and Corporate Performance Division,Natwest Government Procurement Card,100035,441
DFID,DFID,25/02/2011,Staff training & Conferences,Finance and Corporate Performance Division,Natwest Government Procurement Card,100036,"1,059.80"
DFID,DFID,25/02/2011,Staff training & Conferences,Human Resources Division,Natwest Government Procurement Card,100036,117.46
DFID,DFID,01/02/2011,Staff training & Conferences,Policy and Research Directorate,Natwest Government Procurement Card,100035,"3,207.25"
DFID,DFID,25/02/2011,Staff training & Conferences,Policy and Research Directorate,Natwest Government Procurement Card,100036,"4,925.83"
DFID,DFID,01/02/2011,Staff training & Conferences,"Security & Humanitarian, Middle East, Caribbean & Overseas Territories Division",Natwest Government Procurement Card,100035,690
DFID,DFID,25/02/2011,Staff training & Conferences,"Security & Humanitarian, Middle East, Caribbean & Overseas Territories Division",Natwest Government Procurement Card,100036,225
DFID,DFID,01/02/2011,Staff training & Conferences,West and Southern Africa,Natwest Government Procurement Card,100035,"2,098.53"
DFID,DFID,25/02/2011,Staff training & Conferences,West and Southern Africa,Natwest Government Procurement Card,100036,289.01
DFID,DFID,01/02/2011,Staff training & Conferences,Western Asia and Stabilisation Division,Natwest Government Procurement Card,100035,34
DFID,DFID,25/02/2011,Staff training & Conferences,Western Asia and Stabilisation Division,Natwest Government Procurement Card,100036,69.44
DFID,DFID,01/02/2011,Subscriptions,Asia Division,Natwest Government Procurement Card,100035,102
DFID,DFID,25/02/2011,Subscriptions,Asia Division,Natwest Government Procurement Card,100036,75.65
DFID,DFID,25/02/2011,Subscriptions,Business Solutions Division Level,Natwest Government Procurement Card,100036,499.38
DFID,DFID,25/02/2011,Subscriptions,Finance and Corporate Performance Division,Natwest Government Procurement Card,100036,540
DFID,DFID,01/02/2011,Subscriptions,International Relations Division,Natwest Government Procurement Card,100035,137.88
DFID,DFID,01/02/2011,Subscriptions,West and Southern Africa,Natwest Government Procurement Card,100035,13.47
DFID,DFID,25/02/2011,Subscriptions,West and Southern Africa,Natwest Government Procurement Card,100036,13.15
DFID,DFID,01/02/2011,Subscriptions,Western Asia and Stabilisation Division,Natwest Government Procurement Card,100035,253
DFID,DFID,25/02/2011,Technical & Advisory services,Policy and Research Directorate,Natwest Government Procurement Card,100036,21.56
DFID,DFID,25/02/2011,Vehicle Running Costs,West and Southern Africa,Natwest Government Procurement Card,100036,183.5
DFID,DFID,17/02/2011,Staff Business Travel and Subsistence,Asia Division,Hogg Robinson Travel Group,6000040,"13,398.26"
DFID,DFID,21/02/2011,Staff Business Travel and Subsistence,Asia Division,Hogg Robinson Travel Group,6000041,"7,097.06"
DFID,DFID,17/02/2011,Staff Business Travel and Subsistence,Business Solutions Division Level,Hogg Robinson Travel Group,6000040,"4,973.76"
DFID,DFID,21/02/2011,Staff Business Travel and Subsistence,Business Solutions Division Level,Hogg Robinson Travel Group,6000041,"9,881.37"
DFID,DFID,17/02/2011,Staff Business Travel and Subsistence,Communications Division,Hogg Robinson Travel Group,6000040,479.18
DFID,DFID,21/02/2011,Staff Business Travel and Subsistence,Communications Division,Hogg Robinson Travel Group,6000041,475.8
DFID,DFID,17/02/2011,Staff Business Travel and Subsistence,East and Central Africa,Hogg Robinson Travel Group,6000040,"18,973.73"
DFID,DFID,21/02/2011,Staff Business Travel and Subsistence,East and Central Africa,Hogg Robinson Travel Group,6000041,"18,181.84"
DFID,DFID,17/02/2011,Staff Business Travel and Subsistence,Evaluation Department,Hogg Robinson Travel Group,6000040,"4,693.95"
DFID,DFID,21/02/2011,Staff Business Travel and Subsistence,Evaluation Department,Hogg Robinson Travel Group,6000041,"2,026.81"
DFID,DFID,17/02/2011,Staff Business Travel and Subsistence,Finance and Corporate Performance Division,Hogg Robinson Travel Group,6000040,"2,827.28"
DFID,DFID,21/02/2011,Staff Business Travel and Subsistence,Finance and Corporate Performance Division,Hogg Robinson Travel Group,6000041,"5,541.23"
DFID,DFID,17/02/2011,Staff Business Travel and Subsistence,Human Resources Division,Hogg Robinson Travel Group,6000040,"2,978.62"
DFID,DFID,21/02/2011,Staff Business Travel and Subsistence,Human Resources Division,Hogg Robinson Travel Group,6000041,"9,340.24"
DFID,DFID,17/02/2011,Staff Business Travel and Subsistence,Internal Audit,Hogg Robinson Travel Group,6000040,"2,097.02"
DFID,DFID,21/02/2011,Staff Business Travel and Subsistence,Internal Audit,Hogg Robinson Travel Group,6000041,"14,054.81"
DFID,DFID,17/02/2011,Staff Business Travel and Subsistence,International Finance Division,Hogg Robinson Travel Group,6000040,"6,640.65"
DFID,DFID,21/02/2011,Staff Business Travel and Subsistence,International Finance Division,Hogg Robinson Travel Group,6000041,"11,616.75"
DFID,DFID,17/02/2011,Staff Business Travel and Subsistence,International Relations Division,Hogg Robinson Travel Group,6000040,"9,240.20"
DFID,DFID,21/02/2011,Staff Business Travel and Subsistence,International Relations Division,Hogg Robinson Travel Group,6000041,"14,134.73"
DFID,DFID,17/02/2011,Staff Business Travel and Subsistence,Policy and Research Directorate,Hogg Robinson Travel Group,6000040,"30,545.76"
DFID,DFID,21/02/2011,Staff Business Travel and Subsistence,Policy and Research Directorate,Hogg Robinson Travel Group,6000041,"44,618.06"
DFID,DFID,17/02/2011,Staff Business Travel and Subsistence,"Security & Humanitarian, Middle East, Caribbean & Overseas Territories Division",Hogg Robinson Travel Group,6000040,"5,044.29"
DFID,DFID,21/02/2011,Staff Business Travel and Subsistence,"Security & Humanitarian, Middle East, Caribbean & Overseas Territories Division",Hogg Robinson Travel Group,6000041,"39,541.56"
DFID,DFID,17/02/2011,Staff Business Travel and Subsistence,Top Management Group,Hogg Robinson Travel Group,6000040,"21,172.11"
DFID,DFID,21/02/2011,Staff Business Travel and Subsistence,Top Management Group,Hogg Robinson Travel Group,6000041,"43,239.74"
DFID,DFID,17/02/2011,Staff Business Travel and Subsistence,West and Southern Africa,Hogg Robinson Travel Group,6000040,"12,004.75"
DFID,DFID,21/02/2011,Staff Business Travel and Subsistence,West and Southern Africa,Hogg Robinson Travel Group,6000041,"15,290.95"
DFID,DFID,17/02/2011,Staff Business Travel and Subsistence,Western Asia and Stabilisation Division,Hogg Robinson Travel Group,6000040,"39,662.14"
DFID,DFID,21/02/2011,Staff Business Travel and Subsistence,Western Asia and Stabilisation Division,Hogg Robinson Travel Group,6000041,"50,102.50"
DFID,DFID,17/02/2011,Staff training & Conferences,Business Solutions Division Level,Hogg Robinson Travel Group,6000040,273.94
DFID,DFID,17/02/2011,Staff training & Conferences,Finance and Corporate Performance Division,Hogg Robinson Travel Group,6000040,491.92
DFID,DFID,17/02/2011,Staff training & Conferences,Policy and Research Directorate,Hogg Robinson Travel Group,6000040,111.23
DFID,DFID,21/02/2011,Donor Replenishment of funding,International Finance Division,Africa Development Fund Programme Capital,400144432,"2,406,332.61"
DFID,DFID,21/02/2011,Donor Replenishment of funding,International Finance Division,Africa Development Fund Programme Capital,400144434,"6,051,708.73"
DFID,DFID,21/02/2011,Donor Replenishment of funding,International Finance Division,Africa Development Fund Programme Capital,400144435,"15,397,725.00"
DFID,DFID,02/02/2011,Donor Replenishment of funding,International Finance Division,Asian Development Fund Programme Capital,400141090,"4,280,000.00"
DFID,DFID,02/02/2011,Donor Replenishment of funding,International Finance Division,Asian Development Fund Programme Capital,400141109,"3,349,000.00"
